Workbook

Sheet Title List
U2: Total eBooks | W2: Total Print Books | Y2: Total Bundle Sets | AA2: Grand Total | AH2: Total EB Qty | AI2: =AG9394+AI5 -> 0 | AK2: Total EB $ | AL2: =AK9394+AL5 -> 0
AH3: Total HC Qty | AI3: =AH9394+AI5 -> 0 | AK3: Total HC $ | AL3: =AL9394+AL5 -> 0
U4: =AI2 -> 0 | W4: =AI3 -> 0 | Y4: =AI4 -> 0 | AA4: =AI6 -> 0 | AH4: Total Bundles Qty | AI4: =AI9394 -> 0 | AK4: Total Bundles $ | AL4: =AM9394 -> 0
U5: =AL2 -> 0 | W5: =AL3 -> 0 | Y5: =AL4 -> 0 | AA5: =AL8 -> 0 | AH5: Half Bundles Qty | AI5: =AI4/2 -> 0 | AK5: Half Bundles $ | AL5: =AL4/2 -> 0
AH6: Total Book Qty | AI6: =AI2+AI3 -> 0 | AK6: Subtotal | AL6: =AN9394 -> 0
U7: Click on "Finalize Order" to enter ship/bill to information and any other special instructions. Thank you!! | AH7: Subtotal Qty w/o bundles | AI7: =AI6-AI4 -> 0 | AK7: Subtotal w/o bundles | AL7: =AL6-AL4 -> 0
AE8: mikewhite@booklookindiana.com
A10: Multi User eBook Qty | C10: Print Qty | E10: Bundle Qty | G10: eBook ISBN | I10: Print ISBN | K10: Title | O10: Series | S10: Publisher | U10: Multi User eBook Price | W10: School / Library Print Price | Y10: Bundle Price | AA10: Total | AC10: Mark X for FREE | AE10: Custom Field | AG10: HIDDEN EB Qty | AH10: HIDDEN HC Qty | AI10: HIDDEN Bundle Qty | AJ10: HIDDEN TOTAL QTY | AK10: HIDDEN EB TOTAL | AL10: HIDDEN HC TOTAL | AM10: HIDDEN Bundle Qty | AN10: HIDDEN TOTAL | AO10: Season Released | AQ10: Copyright Year | AS10: Dewey Number | AU10: Premium | AW10: Complete Fall '21 | AY10: Animals | BA10: STEM | BC10: Publishers' Catalog Page Number | BE10: Imprint | BG10: AR Level | BI10: Subject | BK10: Language | BM10: Binding | BO10: Page Count | BQ10: Guided Reading Level | BS10: Lexile Level | BU10: Reading Level (by Grade) | BW10: Author
K12: Complete Series of 16 | O12: Amicus Ink Picture Books | U12: =SUM(U13:U28) -> 387.6 | W12: =SUM(W13:W28) -> 288.84 | Y12: =SUM(Y13:Y28) -> 345.85
A13: =A12 -> 0 | C13: =C12 -> 0 | E13: =E12 -> 0 | G13: 9781681525143 | I13: 9781681524085 | K13: Crane & Crane | O13: Amicus Ink Picture Books | S13: Amicus | U13: 25.75 | W13: 17.99 | Y13: =W13+5 -> 22.99 | AA13: =IF(AC13=FALSE,AK13+AL13+AM13,0) -> 0 | AG13: =A13 -> 0 | AH13: =C13 -> 0 | AI13: =E13 -> 0 | AJ13: =SUM(AG13:AI13) -> 0 | AK13: =U13*A13 -> 0 | AL13: =W13*C13 -> 0 | AM13: =Y13*E13 -> 0 | AN13: =SUM(AK13:AM13) -> 0 | AO13: Spring 2019 | AQ13: 2019 | AS13: E | BC13: 11 | BE13: Amicus Ink | BI13: Fiction | BK13: English | BM13: Hardcover with Jacket | BO13: 32 | BU13: PreK – 2 | BW13: Linda Joy Singleton
C14: =C12 -> 0 | G14: Not Available | I14: 9781681521930 | K14: Daddy Cuddle | O14: Amicus Ink Picture Books | S14: Amicus | U14: 0 | W14: 17.99 | Y14: 0 | AA14: =IF(AC14=FALSE,AK14+AL14+AM14,0) -> 0 | AG14: =A14 -> 0 | AH14: =C14 -> 0 | AI14: =E14 -> 0 | AJ14: =SUM(AG14:AI14) -> 0 | AK14: =U14*A14 -> 0 | AL14: =W14*C14 -> 0 | AM14: =Y14*E14 -> 0 | AN14: =SUM(AK14:AM14) -> 0 | AO14: Spring 2017 | AQ14: 2017 | AS14: E | BC14: 12 | BE14: Amicus Ink | BI14: Fiction | BK14: English | BM14: Hardcover with Jacket | BO14: 32 | BU14: PreK – 2 | BW14: Kate Mayes
A15: =A12 -> 0 | C15: =C12 -> 0 | E15: =E12 -> 0 | G15: 9781681525051 | I15: 9781681525020 | K15: Extraordinary Ordinary Ella | O15: Amicus Ink Picture Books | S15: Amicus | U15: 25.75 | W15: 17.99 | Y15: =W15+5 -> 22.99 | AA15: 0 | AG15: 0 | AH15: 0 | AI15: 0 | AJ15: 0 | AK15: 0 | AL15: 0 | AM15: 0 | AN15: 0 | AO15: Spring 2020 | AQ15: 2020 | AS15: E | BC15: 11 | BE15: Amicus Ink | BG15: Not Quizzable | BI15: Fiction | BK15: English | BM15: Hardcover with Jacket | BO15: 32 | BU15: PreK – 2 | BW15: Amber Hendricks
A16: =A12 -> 0 | C16: =C12 -> 0 | E16: =E12 -> 0 | G16: 9781681525112 | I16: 9781681522395 | K16: Grow | O16: Amicus Ink Picture Books | S16: Amicus | U16: 25.75 | W16: 17.99 | Y16: 22.99 | AA16: 0 | AG16: 0 | AH16: 0 | AI16: 0 | AJ16: 0 | AK16: 0 | AL16: 0 | AM16: 0 | AN16: 0 | AO16: Spring 2018 | AQ16: 2018 | AS16: E | BC16: 12 | BE16: Amicus Ink | BI16: Fiction | BK16: English | BM16: Hardcover with Jacket | BO16: 32 | BU16: PreK – 2 | BW16: Cynthia Platt
A17: =A12 -> 0 | C17: =C12 -> 0 | E17: =E12 -> 0 | G17: 9781681525068 | I17: 9781681524047 | K17: I’ve Got Eyes!: Exceptional Eyes of the Animal World | O17: Amicus Ink Picture Books | S17: Amicus | U17: 25.75 | W17: 17.99 | Y17: 22.99 | AA17: 0 | AG17: 0 | AH17: 0 | AI17: 0 | AJ17: 0 | AK17: 0 | AL17: 0 | AM17: 0 | AN17: 0 | AO17: Fall 2018 | AQ17: 2018 | AS17: 591.4/4 | BC17: 11 | BE17: Amicus Ink | BI17: Fiction | BK17: English | BM17: Hardcover with Jacket | BO17: 32 | BU17: PreK – 2 | BW17: Julie Murphy
A18: =A12 -> 0 | C18: =C12 -> 0 | E18: =E12 -> 0 | G18: 9781681525044 | I18: 9781681525013 | K18: I've Got a Tail!: Terrific Tails of the Animal World | O18: Amicus Ink Picture Books | S18: Amicus | U18: 25.75 | W18: 17.99 | Y18: 22.99 | AA18: 0 | AG18: 0 | AH18: 0 | AI18: 0 | AJ18: 0 | AK18: 0 | AL18: 0 | AM18: 0 | AN18: 0 | AO18: Spring 2020 | AQ18: 2020 | AS18: 591.47 | BC18: 11 | BE18: Amicus Ink | BG18: Not Quizzable | BI18: Fiction | BK18: English | BM18: Hardcover with Jacket | BO18: 32 | BU18: PreK – 2 | BW18: Julie Murphy
A19: =A12 -> 0 | C19: =C12 -> 0 | E19: =E12 -> 0 | G19: 9781681525136 | I19: 9781681521954 | K19: I've Got Feet: Fantastical Feet of the Animal World | O19: Amicus Ink Picture Books | S19: Amicus | U19: 25.75 | W19: 17.99 | Y19: 22.99 | AA19: 0 | AG19: 0 | AH19: 0 | AI19: 0 | AJ19: 0 | AK19: 0 | AL19: 0 | AM19: 0 | AN19: 0 | AO19: Spring 2017 | AQ19: 2017 | AS19: 591.47/9 | BC19: 11 | BE19: Amicus Ink | BG19: 2.7 | BI19: Fiction | BK19: English | BM19: Hardcover with Jacket | BO19: 32 | BU19: PreK – 2 | BW19: Julie Murphy
A20: =A12 -> 0 | C20: =C12 -> 0 | E20: =E12 -> 0 | G20: 9781681525105 | I20: 9781681522029 | K20: Just My Style | O20: Amicus Ink Picture Books | S20: Amicus | U20: 25.75 | W20: 17.99 | Y20: 22.99 | AA20: 0 | AG20: 0 | AH20: 0 | AI20: 0 | AJ20: 0 | AK20: 0 | AL20: 0 | AM20: 0 | AN20: 0 | AO20: Spring 2018 | AQ20: 2018 | AS20: E | BC20: 12 | BE20: Amicus Ink | BI20: Fiction | BK20: English | BM20: Hardcover with Jacket | BO20: 32 | BU20: PreK – 2 | BW20: Diane Z. Shore & Jessica Alexander
A21: =A12 -> 0 | C21: =C12 -> 0 | E21: =E12 -> 0 | G21: 9781681526553 | I21: 9781681526546 | K21: Little Round Panda on the Big Blue Earth, A | O21: Amicus Ink Picture Books | S21: Amicus | U21: 27.2 | W21: 18.99 | Y21: 23.99 | AA21: 0 | AG21: 0 | AH21: 0 | AI21: 0 | AJ21: 0 | AK21: 0 | AL21: 0 | AM21: 0 | AN21: 0 | AO21: Fall 2021 | AQ21: 2021 | AS21: 599.789 | BC21: 9 | BE21: Amicus Ink | BI21: Fiction | BK21: English | BM21: Hardcover with Jacket | BO21: 32 | BU21: PreK – 2 | BW21: Tory Christie
A22: =A12 -> 0 | C22: =C12 -> 0 | E22: =E12 -> 0 | G22: 9781681525181 | I22: 9781681522371 | K22: Mighty Steam Engine, The | O22: Amicus Ink Picture Books | S22: Amicus | U22: 25.75 | W22: 17.99 | Y22: 22.99 | AA22: 0 | AG22: 0 | AH22: 0 | AI22: 0 | AJ22: 0 | AK22: 0 | AL22: 0 | AM22: 0 | AN22: 0 | AO22: Fall 2019 | AQ22: 2019 | AS22: E | BC22: 11 | BE22: Amicus Ink | BG22: 4.9 | BI22: Fiction | BK22: English | BM22: Hardcover with Jacket | BO22: 32 | BU22: PreK – 2 | BW22: Yvonne Ng
A23: =A12 -> 0 | C23: =C12 -> 0 | E23: =E12 -> 0 | G23: 9781681525730 | I23: 9781681525723 | K23: My Room Is a Zoo! | O23: Amicus Ink Picture Books | S23: Amicus | U23: 27.2 | W23: 18.99 | Y23: 23.99 | AA23: 0 | AG23: 0 | AH23: 0 | AI23: 0 | AJ23: 0 | AK23: 0 | AL23: 0 | AM23: 0 | AN23: 0 | AO23: Fall 2021 | AQ23: 2021 | AS23: E | BC23: 6 | BE23: Amicus Ink | BI23: Fiction | BK23: English | BM23: Hardcover with Jacket | BO23: 32 | BU23: PreK – 2 | BW23: Jerry Ruff
A24: =A12 -> 0 | C24: =C12 -> 0 | E24: =E12 -> 0 | G24: 9781681525198 | I24: 9781681524153 | K24: No Hugs! | O24: Amicus Ink Picture Books | S24: Amicus | U24: 24.3 | W24: 16.99 | Y24: 21.99 | AA24: 0 | AG24: 0 | AH24: 0 | AI24: 0 | AJ24: 0 | AK24: 0 | AL24: 0 | AM24: 0 | AN24: 0 | AO24: Fall 2019 | AQ24: 2019 | AS24: E | BC24: 12 | BE24: Amicus Ink | BI24: Fiction | BK24: English | BM24: Hardcover with Jacket | BO24: 24 | BU24: PreK – 2 | BW24: Deirdre A. Prischmann
A25: =A12 -> 0 | C25: =C12 -> 0 | E25: =E12 -> 0 | G25: 9781681526560 | I25: 9781681522388 | K25: They're Tearing Up Mulberry Street | O25: Amicus Ink Picture Books | S25: Amicus | U25: 25.7 | W25: 17.99 | Y25: 22.99 | AA25: 0 | AG25: 0 | AH25: 0 | AI25: 0 | AJ25: 0 | AK25: 0 | AL25: 0 | AM25: 0 | AN25: 0 | AO25: Fall 2021 | AQ25: 2021 | AS25: 625.8/5 | BA25: Q | BC25: 5 | BE25: Amicus Ink | BI25: Fiction | BK25: English | BM25: Hardcover with Jacket | BO25: 24 | BU25: PreK – 2 | BW25: Yvonne Ng
A26: =A12 -> 0 | C26: =C12 -> 0 | E26: =E12 -> 0 | G26: 9781681525204 | I26: 9781681524986 | K26: Tiny Brown Monkey on the Big Blue Earth, A | O26: Amicus Ink Picture Books | S26: Amicus | U26: 25.75 | W26: 17.99 | Y26: 22.99 | AA26: 0 | AG26: 0 | AH26: 0 | AI26: 0 | AJ26: 0 | AK26: 0 | AL26: 0 | AM26: 0 | AN26: 0 | AO26: Fall 2019 | AQ26: 2019 | AS26: E | BC26: 9 | BE26: Amicus Ink | BG26: 2.8 | BI26: Fiction | BK26: English | BM26: Hardcover with Jacket | BO26: 32 | BU26: PreK – 2 | BW26: Tory Christie
A27: =A12 -> 0 | C27: =C12 -> 0 | E27: =E12 -> 0 | G27: 9781681525075 | I27: 9781681524054 | K27: Twinkle, Twinkle, Little Lamb | O27: Amicus Ink Picture Books | S27: Amicus | U27: 25.75 | W27: 17.99 | Y27: 22.99 | AA27: 0 | AG27: 0 | AH27: 0 | AI27: 0 | AJ27: 0 | AK27: 0 | AL27: 0 | AM27: 0 | AN27: 0 | AO27: Fall 2018 | AQ27: 2018 | AS27: E | BC27: 12 | BE27: Amicus Ink | BI27: Fiction | BK27: English | BM27: Hardcover with Jacket | BO27: 32 | BU27: PreK – 2 | BW27: Bridget Heos
A28: =A12 -> 0 | C28: =C12 -> 0 | E28: =E12 -> 0 | G28: 9781681526584 | I28: 9781681526577 | K28: Who Knew? Under the Apple Tree | O28: Amicus Ink Picture Books | S28: Amicus | U28: 25.7 | W28: 17.99 | Y28: 22.99 | AA28: 0 | AG28: 0 | AH28: 0 | AI28: 0 | AJ28: 0 | AK28: 0 | AL28: 0 | AM28: 0 | AN28: 0 | AO28: Fall 2021 | AQ28: 2021 | AS28: 513.2/1 | BC28: 10 | BE28: Amicus Ink | BI28: Fiction | BK28: English | BM28: Hardcover with Jacket | BO28: 24 | BU28: PreK – 2 | BW28: Laurie Lazzaro Knowlton
K30: Complete Series of 6 | O30: Animales del océano (Spot Ocean Animals) | U30: =SUM(U31:U36) -> 244.8 | W30: =SUM(W31:W36) -> 119.7 | Y30: =SUM(Y31:Y36) -> 149.7
A31: =A30 -> 0 | C31: =C30 -> 0 | E31: =E30 -> 0 | G31: 9781645492399 | I31: 9781645492337 | K31: Las anguilas (Eels) | O31: Animales del océano (Spot Ocean Animals) | S31: Amicus | U31: 40.8 | W31: 19.95 | Y31: =W31+5 -> 24.95 | AA31: =IF(AC31=FALSE,AK31+AL31+AM31,0) -> 0 | AG31: 0 | AH31: 0 | AI31: 0 | AJ31: 0 | AK31: 0 | AL31: 0 | AM31: 0 | AN31: 0 | AO31: Spring 2021 | AQ31: 2021 | AS31: 597/.43 | BC31: 49 | BE31: Spot | BG31: 1 | BI31: Life Science | BK31: Spanish | BM31: Reinforced Library | BO31: 16 | BQ31: C | BU31: K & Up | BW31: Mari Schuh
A32: =A30 -> 0 | C32: =C30 -> 0 | E32: =E30 -> 0 | G32: 9781645492405 | I32: 9781645492344 | K32: Las langostas (Lobsters) | O32: Animales del océano (Spot Ocean Animals) | S32: Amicus | U32: 40.8 | W32: 19.95 | Y32: 24.95 | AA32: 0 | AG32: 0 | AH32: 0 | AI32: 0 | AJ32: 0 | AK32: 0 | AL32: 0 | AM32: 0 | AN32: 0 | AO32: Spring 2021 | AQ32: 2021 | AS32: 595.3/84 | BC32: 49 | BE32: Spot | BG32: 1.4 | BI32: Life Science | BK32: Spanish | BM32: Reinforced Library | BO32: 16 | BQ32: C | BU32: K & Up | BW32: Mari Schuh
A33: =A30 -> 0 | C33: =C30 -> 0 | E33: =E30 -> 0 | G33: 9781645492436 | I33: 9781645492375 | K33: Los calamares (Squids) | O33: Animales del océano (Spot Ocean Animals) | S33: Amicus | U33: 40.8 | W33: 19.95 | Y33: 24.95 | AA33: 0 | AG33: 0 | AH33: 0 | AI33: 0 | AJ33: 0 | AK33: 0 | AL33: 0 | AM33: 0 | AN33: 0 | AO33: Spring 2021 | AQ33: 2021 | AS33: 594/.58 | BC33: 49 | BE33: Spot | BG33: 1 | BI33: Life Science | BK33: Spanish | BM33: Reinforced Library | BO33: 16 | BQ33: C | BU33: K & Up | BW33: Mari Schuh
A34: =A30 -> 0 | C34: =C30 -> 0 | E34: =E30 -> 0 | G34: 9781645492382 | I34: 9781645492320 | K34: Los corales (Corals) | O34: Animales del océano (Spot Ocean Animals) | S34: Amicus | U34: 40.8 | W34: 19.95 | Y34: 24.95 | AA34: 0 | AG34: 0 | AH34: 0 | AI34: 0 | AJ34: 0 | AK34: 0 | AL34: 0 | AM34: 0 | AN34: 0 | AO34: Spring 2021 | AQ34: 2021 | AS34: 593.6 | BC34: 49 | BE34: Spot | BG34: 1.8 | BI34: Life Science | BK34: Spanish | BM34: Reinforced Library | BO34: 16 | BQ34: C | BU34: K & Up | BW34: Mari Schuh
A35: =A30 -> 0 | C35: =C30 -> 0 | E35: =E30 -> 0 | G35: 9781645492429 | I35: 9781645492368 | K35: Los dragones de mar (Sea Dragons) | O35: Animales del océano (Spot Ocean Animals) | S35: Amicus | U35: 40.8 | W35: 19.95 | Y35: 24.95 | AA35: 0 | AG35: 0 | AH35: 0 | AI35: 0 | AJ35: 0 | AK35: 0 | AL35: 0 | AM35: 0 | AN35: 0 | AO35: Spring 2021 | AQ35: 2021 | AS35: 597/.679 | BC35: 49 | BE35: Spot | BG35: 1.3 | BI35: Life Science | BK35: Spanish | BM35: Reinforced Library | BO35: 16 | BQ35: C | BU35: K & Up | BW35: Mari Schuh
A36: =A30 -> 0 | C36: =C30 -> 0 | E36: =E30 -> 0 | G36: 9781645492412 | I36: 9781645492351 | K36: Los manatíes (Manatees) | O36: Animales del océano (Spot Ocean Animals) | S36: Amicus | U36: 40.8 | W36: 19.95 | Y36: 24.95 | AA36: 0 | AG36: 0 | AH36: 0 | AI36: 0 | AJ36: 0 | AK36: 0 | AL36: 0 | AM36: 0 | AN36: 0 | AO36: Spring 2021 | AQ36: 2021 | AS36: 599.55 | BC36: 49 | BE36: Spot | BG36: 0.9 | BI36: Life Science | BK36: Spanish | BM36: Reinforced Library | BO36: 16 | BQ36: C | BU36: K & Up | BW36: Mari Schuh
K38: Complete Series of 6 | O38: Clima extremo (Spot Extreme Weather) | U38: =SUM(U39:U44) -> 244.8 | W38: =SUM(W39:W44) -> 119.7 | Y38: =SUM(Y39:Y44) -> 149.7
A39: =A38 -> 0 | C39: =C38 -> 0 | E39: =E38 -> 0 | G39: 9781645492221 | I39: 9781645491965 | K39: Las inundaciones (Floods) | O39: Clima extremo (Spot Extreme Weather) | S39: Amicus | U39: 40.8 | W39: 19.95 | Y39: =W39+5 -> 24.95 | AA39: =IF(AC39=FALSE,AK39+AL39+AM39,0) -> 0 | AG39: 0 | AH39: 0 | AI39: 0 | AJ39: 0 | AK39: 0 | AL39: 0 | AM39: 0 | AN39: 0 | AO39: Spring 2021 | AQ39: 2021 | AS39: 551.48/9 | BC39: 49 | BE39: Spot | BG39: 1 | BI39: Science | BK39: Spanish | BM39: Reinforced Library | BO39: 16 | BQ39: D | BU39: K & Up | BW39: Anastasia Suen
A40: =A38 -> 0 | C40: =C38 -> 0 | E40: =E38 -> 0 | G40: 9781645492207 | I40: 9781645491941 | K40: Las ventiscas (Blizzards) | O40: Clima extremo (Spot Extreme Weather) | S40: Amicus | U40: 40.8 | W40: 19.95 | Y40: 24.95 | AA40: 0 | AG40: 0 | AH40: 0 | AI40: 0 | AJ40: 0 | AK40: 0 | AL40: 0 | AM40: 0 | AN40: 0 | AO40: Spring 2021 | AQ40: 2021 | AS40: 551.55/5 | BC40: 49 | BE40: Spot | BG40: 1.5 | BI40: Science | BK40: Spanish | BM40: Reinforced Library | BO40: 16 | BQ40: D | BU40: K & Up | BW40: Anastasia Suen
A41: =A38 -> 0 | C41: =C38 -> 0 | E41: =E38 -> 0 | G41: 9781645492238 | I41: 9781645491972 | K41: Los huracanes (Hurricanes) | O41: Clima extremo (Spot Extreme Weather) | S41: Amicus | U41: 40.8 | W41: 19.95 | Y41: 24.95 | AA41: 0 | AG41: 0 | AH41: 0 | AI41: 0 | AJ41: 0 | AK41: 0 | AL41: 0 | AM41: 0 | AN41: 0 | AO41: Spring 2021 | AQ41: 2021 | AS41: 551.55/2 | BC41: 49 | BE41: Spot | BG41: 0.8 | BI41: Science | BK41: Spanish | BM41: Reinforced Library | BO41: 16 | BQ41: D | BU41: K & Up | BW41: Anastasia Suen
A42: =A38 -> 0 | C42: =C38 -> 0 | E42: =E38 -> 0 | G42: 9781645492252 | I42: 9781645491996 | K42: Los incendios forestales (Forest Fires) | O42: Clima extremo (Spot Extreme Weather) | S42: Amicus | U42: 40.8 | W42: 19.95 | Y42: 24.95 | AA42: 0 | AG42: 0 | AH42: 0 | AI42: 0 | AJ42: 0 | AK42: 0 | AL42: 0 | AM42: 0 | AN42: 0 | AO42: Spring 2021 | AQ42: 2021 | AS42: 634.9/618 | BC42: 49 | BE42: Spot | BG42: 1.7 | BI42: Science | BK42: Spanish | BM42: Reinforced Library | BO42: 16 | BQ42: D | BU42: K & Up | BW42: Anastasia Suen
A43: =A38 -> 0 | C43: =C38 -> 0 | E43: =E38 -> 0 | G43: 9781645492214 | I43: 9781645491958 | K43: Los terremotos (Earthquakes) | O43: Clima extremo (Spot Extreme Weather) | S43: Amicus | U43: 40.8 | W43: 19.95 | Y43: 24.95 | AA43: 0 | AG43: 0 | AH43: 0 | AI43: 0 | AJ43: 0 | AK43: 0 | AL43: 0 | AM43: 0 | AN43: 0 | AO43: Spring 2021 | AQ43: 2021 | AS43: 551.22 | BC43: 49 | BE43: Spot | BG43: 1.1 | BI43: Science | BK43: Spanish | BM43: Reinforced Library | BO43: 16 | BQ43: D | BU43: K & Up | BW43: Anastasia Suen
A44: =A38 -> 0 | C44: =C38 -> 0 | E44: =E38 -> 0 | G44: 9781645492245 | I44: 9781645491989 | K44: Los tornados (Tornadoes) | O44: Clima extremo (Spot Extreme Weather) | S44: Amicus | U44: 40.8 | W44: 19.95 | Y44: 24.95 | AA44: 0 | AG44: 0 | AH44: 0 | AI44: 0 | AJ44: 0 | AK44: 0 | AL44: 0 | AM44: 0 | AN44: 0 | AO44: Spring 2021 | AQ44: 2021 | AS44: 551.55/3 | BC44: 49 | BE44: Spot | BG44: 0.8 | BI44: Science | BK44: Spanish | BM44: Reinforced Library | BO44: 16 | BQ44: D | BU44: K & Up | BW44: Anastasia Suen
K46: Complete Series of 8 | O46: Deportes (Spot Sports) | U46: =SUM(U47:U54) -> 326.4 | W46: =SUM(W47:W54) -> 159.6 | Y46: =SUM(Y47:Y54) -> 199.6
A47: =A46 -> 0 | C47: =C46 -> 0 | E47: =E46 -> 0 | G47: 9781645492191 | I47: 9781645491934 | K47: Atletismo (Track & Field) | O47: Deportes (Spot Sports) | S47: Amicus | U47: 40.8 | W47: 19.95 | Y47: =W47+5 -> 24.95 | AA47: =IF(AC47=FALSE,AK47+AL47+AM47,0) -> 0 | AG47: 0 | AH47: 0 | AI47: 0 | AJ47: 0 | AK47: 0 | AL47: 0 | AM47: 0 | AN47: 0 | AO47: Spring 2021 | AQ47: 2021 | AS47: 796.42 | BC47: 49 | BE47: Spot | BG47: 1.3 | BI47: Sports and Recreation | BK47: Spanish | BM47: Reinforced Library | BO47: 16 | BU47: K & Up | BW47: Mari Schuh
A48: =A46 -> 0 | C48: =C46 -> 0 | E48: =E46 -> 0 | G48: 9781645492122 | I48: 9781645491866 | K48: Boliche (Bowling) | O48: Deportes (Spot Sports) | S48: Amicus | U48: 40.8 | W48: 19.95 | Y48: 24.95 | AA48: 0 | AG48: 0 | AH48: 0 | AI48: 0 | AJ48: 0 | AK48: 0 | AL48: 0 | AM48: 0 | AN48: 0 | AO48: Spring 2021 | AQ48: 2021 | AS48: 794.6 | BC48: 49 | BE48: Spot | BG48: 0.9 | BI48: Sports and Recreation | BK48: Spanish | BM48: Reinforced Library | BO48: 16 | BU48: K & Up | BW48: Mari Schuh
A49: =A46 -> 0 | C49: =C46 -> 0 | E49: =E46 -> 0 | G49: 9781645492146 | I49: 9781645491880 | K49: Esquí alpino (Downhill Skiing) | O49: Deportes (Spot Sports) | S49: Amicus | U49: 40.8 | W49: 19.95 | Y49: 24.95 | AA49: 0 | AG49: 0 | AH49: 0 | AI49: 0 | AJ49: 0 | AK49: 0 | AL49: 0 | AM49: 0 | AN49: 0 | AO49: Spring 2021 | AQ49: 2021 | AS49: 796.93 | BC49: 49 | BE49: Spot | BG49: 1.1 | BI49: Sports and Recreation | BK49: Spanish | BM49: Reinforced Library | BO49: 16 | BU49: K & Up | BW49: Mari Schuh
A50: =A46 -> 0 | C50: =C46 -> 0 | E50: =E46 -> 0 | G50: 9781645492153 | I50: 9781645491897 | K50: Lacrosse (Lacrosse) | O50: Deportes (Spot Sports) | S50: Amicus | U50: 40.8 | W50: 19.95 | Y50: 24.95 | AA50: 0 | AG50: 0 | AH50: 0 | AI50: 0 | AJ50: 0 | AK50: 0 | AL50: 0 | AM50: 0 | AN50: 0 | AO50: Spring 2021 | AQ50: 2021 | AS50: 796.36/2 | BC50: 49 | BE50: Spot | BG50: 0.9 | BI50: Sports and Recreation | BK50: Spanish | BM50: Reinforced Library | BO50: 16 | BU50: K & Up | BW50: Mari Schuh
A51: =A46 -> 0 | C51: =C46 -> 0 | E51: =E46 -> 0 | G51: 9781645492160 | I51: 9781645491903 | K51: Patineta (Skateboarding) | O51: Deportes (Spot Sports) | S51: Amicus | U51: 40.8 | W51: 19.95 | Y51: 24.95 | AA51: 0 | AG51: 0 | AH51: 0 | AI51: 0 | AJ51: 0 | AK51: 0 | AL51: 0 | AM51: 0 | AN51: 0 | AO51: Spring 2021 | AQ51: 2021 | AS51: 796.22 | BC51: 49 | BE51: Spot | BG51: 1.2 | BI51: Sports and Recreation | BK51: Spanish | BM51: Reinforced Library | BO51: 16 | BU51: K & Up | BW51: Mari Schuh
A52: =A46 -> 0 | C52: =C46 -> 0 | E52: =E46 -> 0 | G52: 9781645492139 | I52: 9781645491873 | K52: Porrismo (Cheerleading) | O52: Deportes (Spot Sports) | S52: Amicus | U52: 40.8 | W52: 19.95 | Y52: 24.95 | AA52: 0 | AG52: 0 | AH52: 0 | AI52: 0 | AJ52: 0 | AK52: 0 | AL52: 0 | AM52: 0 | AN52: 0 | AO52: Spring 2021 | AQ52: 2021 | AS52: 791.6/4 | BC52: 49 | BE52: Spot | BG52: 1.4 | BI52: Sports and Recreation | BK52: Spanish | BM52: Reinforced Library | BO52: 16 | BU52: K & Up | BW52: Mari Schuh
A53: =A46 -> 0 | C53: =C46 -> 0 | E53: =E46 -> 0 | G53: 9781645492177 | I53: 9781645491910 | K53: Sofbol (Softball) | O53: Deportes (Spot Sports) | S53: Amicus | U53: 40.8 | W53: 19.95 | Y53: 24.95 | AA53: 0 | AG53: 0 | AH53: 0 | AI53: 0 | AJ53: 0 | AK53: 0 | AL53: 0 | AM53: 0 | AN53: 0 | AO53: Spring 2021 | AQ53: 2021 | AS53: 796.357/8 | BC53: 49 | BE53: Spot | BG53: 1.2 | BI53: Sports and Recreation | BK53: Spanish | BM53: Reinforced Library | BO53: 16 | BU53: K & Up | BW53: Mari Schuh
A54: =A46 -> 0 | C54: =C46 -> 0 | E54: =E46 -> 0 | G54: 9781645492184 | I54: 9781645491927 | K54: Tenis (Tennis) | O54: Deportes (Spot Sports) | S54: Amicus | U54: 40.8 | W54: 19.95 | Y54: 24.95 | AA54: 0 | AG54: 0 | AH54: 0 | AI54: 0 | AJ54: 0 | AK54: 0 | AL54: 0 | AM54: 0 | AN54: 0 | AO54: Spring 2021 | AQ54: 2021 | AS54: 796.342 | BC54: 49 | BE54: Spot | BG54: 0.7 | BI54: Sports and Recreation | BK54: Spanish | BM54: Reinforced Library | BO54: 16 | BU54: K & Up | BW54: Mari Schuh
K56: Complete Series of 6 | O56: Ecosystem Food Webs | U56: =SUM(U57:U62) -> 269.1 | W56: =SUM(W57:W62) -> 131.7 | Y56: =SUM(Y57:Y62) -> 161.7
A57: =A56 -> 0 | C57: =C56 -> 0 | E57: =E56 -> 0 | G57: 9781645490845 | I57: 9781645490043 | K57: Arctic Food Web, An | O57: Ecosystem Food Webs | S57: Amicus | U57: 44.85 | W57: 21.95 | Y57: =W57+5 -> 26.95 | AA57: =IF(AC57=FALSE,AK57+AL57+AM57,0) -> 0 | AG57: 0 | AH57: 0 | AI57: 0 | AJ57: 0 | AK57: 0 | AL57: 0 | AM57: 0 | AN57: 0 | AO57: Spring 2021 | AQ57: 2021 | AS57: 577.5/8609113 | AU57: Q | BC57: 38 | BE57: Amicus Illustrated | BI57: Life Science | BK57: English | BM57: Reinforced Library | BO57: 24 | BQ57: L | BS57: 540L | BU57: Grade 2 & up | BW57: Imogen Kingsley
A58: =A56 -> 0 | C58: =C56 -> 0 | E58: =E56 -> 0 | G58: 9781645490807 | I58: 9781645490005 | K58: Desert Food Web, A | O58: Ecosystem Food Webs | S58: Amicus | U58: 44.85 | W58: 21.95 | Y58: 26.95 | AA58: 0 | AG58: 0 | AH58: 0 | AI58: 0 | AJ58: 0 | AK58: 0 | AL58: 0 | AM58: 0 | AN58: 0 | AO58: Spring 2021 | AQ58: 2021 | AS58: 577.540973 | AU58: Q | BC58: 38 | BE58: Amicus Illustrated | BI58: Life Science | BK58: English | BM58: Reinforced Library | BO58: 24 | BQ58: L | BS58: 570L | BU58: Grade 2 & up | BW58: Cari Meister
A59: =A56 -> 0 | C59: =C56 -> 0 | E59: =E56 -> 0 | G59: 9781645490814 | I59: 9781645490012 | K59: Freshwater Food Web, A | O59: Ecosystem Food Webs | S59: Amicus | U59: 44.85 | W59: 21.95 | Y59: 26.95 | AA59: 0 | AG59: 0 | AH59: 0 | AI59: 0 | AJ59: 0 | AK59: 0 | AL59: 0 | AM59: 0 | AN59: 0 | AO59: Spring 2021 | AQ59: 2021 | AS59: 577.680973 | AU59: Q | BC59: 38 | BE59: Amicus Illustrated | BI59: Life Science | BK59: English | BM59: Reinforced Library | BO59: 24 | BQ59: L | BS59: 500L | BU59: Grade 2 & up | BW59: Cari Meister
A60: =A56 -> 0 | C60: =C56 -> 0 | E60: =E56 -> 0 | G60: 9781645490821 | I60: 9781645490029 | K60: Grassland Food Web, A | O60: Ecosystem Food Webs | S60: Amicus | U60: 44.85 | W60: 21.95 | Y60: 26.95 | AA60: 0 | AG60: 0 | AH60: 0 | AI60: 0 | AJ60: 0 | AK60: 0 | AL60: 0 | AM60: 0 | AN60: 0 | AO60: Spring 2021 | AQ60: 2021 | AS60: 577.4 | AU60: Q | BC60: 38 | BE60: Amicus Illustrated | BI60: Life Science | BK60: English | BM60: Reinforced Library | BO60: 24 | BQ60: L | BS60: 530L | BU60: Grade 2 & up | BW60: Cari Meister
A61: =A56 -> 0 | C61: =C56 -> 0 | E61: =E56 -> 0 | G61: 9781645490852 | I61: 9781645490050 | K61: Ocean Food Web, An | O61: Ecosystem Food Webs | S61: Amicus | U61: 44.85 | W61: 21.95 | Y61: 26.95 | AA61: 0 | AG61: 0 | AH61: 0 | AI61: 0 | AJ61: 0 | AK61: 0 | AL61: 0 | AM61: 0 | AN61: 0 | AO61: Spring 2021 | AQ61: 2021 | AS61: 577.7 | AU61: Q | BC61: 38 | BE61: Amicus Illustrated | BI61: Life Science | BK61: English | BM61: Reinforced Library | BO61: 24 | BQ61: L | BS61: 510L | BU61: Grade 2 & up | BW61: Cari Meister
A62: =A56 -> 0 | C62: =C56 -> 0 | E62: =E56 -> 0 | G62: 9781645490838 | I62: 9781645490036 | K62: Rainforest Food Web, A | O62: Ecosystem Food Webs | S62: Amicus | U62: 44.85 | W62: 21.95 | Y62: 26.95 | AA62: 0 | AG62: 0 | AH62: 0 | AI62: 0 | AJ62: 0 | AK62: 0 | AL62: 0 | AM62: 0 | AN62: 0 | AO62: Spring 2021 | AQ62: 2021 | AS62: 577.340981/1 | AU62: Q | BC62: 38 | BE62: Amicus Illustrated | BI62: Life Science | BK62: English | BM62: Reinforced Library | BO62: 24 | BQ62: L | BS62: 530L | BU62: Grade 2 & up | BW62: Cari Meister
K64: Complete Series of 6 | O64: Little Animal Friends (Board Book) | U64: =SUM(U65:U70) -> 77.4 | W64: =SUM(W65:W70) -> 54.94 | Y64: =SUM(Y65:Y70) -> 84.94
A65: =A64 -> 0 | C65: =C64 -> 0 | E65: =E64 -> 0 | G65: 9781681525648 | I65: 9781681525631 | K65: Little Hippo | O65: Little Animal Friends (Board Book) | S65: Amicus | U65: 12.9 | W65: 8.99 | Y65: =W65+5 -> 13.99 | AA65: =IF(AC65=FALSE,AK65+AL65+AM65,0) -> 0 | AG65: 0 | AH65: 0 | AI65: 0 | AJ65: 0 | AK65: 0 | AL65: 0 | AM65: 0 | AN65: 0 | AO65: Spring 2020 | AQ65: 2020 | AS65: E | BC65: 13 | BE65: Amicus Ink | BG65: Not Quizzable | BI65: Animals & Nature | BK65: English | BM65: Board Book | BO65: 20 | BU65: PreK - 1 | BW65: Julie Abery
A66: =A64 -> 0 | C66: =C64 -> 0 | E66: =E64 -> 0 | G66: 9781681525662 | I66: 9781681525655 | K66: Little Monkey | O66: Little Animal Friends (Board Book) | S66: Amicus | U66: 12.9 | W66: 8.99 | Y66: 13.99 | AA66: 0 | AG66: 0 | AH66: 0 | AI66: 0 | AJ66: 0 | AK66: 0 | AL66: 0 | AM66: 0 | AN66: 0 | AO66: Spring 2020 | AQ66: 2020 | AS66: E | BC66: 13 | BE66: Amicus Ink | BG66: Not Quizzable | BI66: Animals & Nature | BK66: English | BM66: Board Book | BO66: 20 | BU66: PreK - 1 | BW66: Julie Abery
A67: =A64 -> 0 | C67: =C64 -> 0 | E67: =E64 -> 0 | G67: 9781681525174 | I67: 9781681524146 | K67: Little Panda | O67: Little Animal Friends (Board Book) | S67: Amicus | U67: 12.9 | W67: 9.99 | Y67: 14.99 | AA67: 0 | AG67: 0 | AH67: 0 | AI67: 0 | AJ67: 0 | AK67: 0 | AL67: 0 | AM67: 0 | AN67: 0 | AO67: Spring 2019 | AQ67: 2019 | AS67: E | BC67: 13 | BE67: Amicus Ink | BG67: Not Quizzable | BI67: Animals & Nature | BK67: English | BM67: Board Book | BO67: 20 | BU67: PreK - 1 | BW67: Julie Abery
A68: =A64 -> 0 | C68: =C64 -> 0 | E68: =E64 -> 0 | G68: 9781681527437 | I68: 9781681527413 | K68: Little Penguin | O68: Little Animal Friends (Board Book) | S68: Amicus | U68: 12.9 | W68: 8.99 | Y68: 13.99 | AA68: 0 | AG68: 0 | AH68: 0 | AI68: 0 | AJ68: 0 | AK68: 0 | AL68: 0 | AM68: 0 | AN68: 0 | AO68: Spring 2021 | AQ68: 2021 | AS68: E | AU68: Q | BC68: 13 | BE68: Amicus Ink | BI68: Life Science | BK68: English | BM68: Board Book | BO68: 20 | BQ68: na | BU68: PreK & Up | BW68: Julie Abery
A69: =A64 -> 0 | C69: =C64 -> 0 | E69: =E64 -> 0 | G69: 9781681525167 | I69: 9781681524139 | K69: Little Tiger | O69: Little Animal Friends (Board Book) | S69: Amicus | U69: 12.9 | W69: 8.99 | Y69: 13.99 | AA69: 0 | AG69: 0 | AH69: 0 | AI69: 0 | AJ69: 0 | AK69: 0 | AL69: 0 | AM69: 0 | AN69: 0 | AO69: Spring 2019 | AQ69: 2019 | AS69: E | BC69: 13 | BE69: Amicus Ink | BG69: Not Quizzable | BI69: Animals & Nature | BK69: English | BM69: Board Book | BO69: 20 | BU69: PreK - 1 | BW69: Julie Abery
A70: =A64 -> 0 | C70: =C64 -> 0 | E70: =E64 -> 0 | G70: 9781681527444 | I70: 9781681527420 | K70: Little Zebra | O70: Little Animal Friends (Board Book) | S70: Amicus | U70: 12.9 | W70: 8.99 | Y70: 13.99 | AA70: 0 | AG70: 0 | AH70: 0 | AI70: 0 | AJ70: 0 | AK70: 0 | AL70: 0 | AM70: 0 | AN70: 0 | AO70: Spring 2021 | AQ70: 2021 | AS70: E | AU70: Q | BC70: 13 | BE70: Amicus Ink | BI70: Life Science | BK70: English | BM70: Board Book | BO70: 20 | BQ70: na | BU70: PreK & Up | BW70: Julie Abery
K72: Complete Series of 6 | O72: Los gatos salvajes (Spot Wild Cats) | U72: =SUM(U73:U78) -> 244.8 | W72: =SUM(W73:W78) -> 119.7 | Y72: =SUM(Y73:Y78) -> 149.7
A73: =A72 -> 0 | C73: =C72 -> 0 | E73: =E72 -> 0 | G73: 9781645492061 | I73: 9781645491804 | K73: Los gatos monteses (Wild Cats) | O73: Los gatos salvajes (Spot Wild Cats) | S73: Amicus | U73: 40.8 | W73: 19.95 | Y73: =W73+5 -> 24.95 | AA73: =IF(AC73=FALSE,AK73+AL73+AM73,0) -> 0 | AG73: 0 | AH73: 0 | AI73: 0 | AJ73: 0 | AK73: 0 | AL73: 0 | AM73: 0 | AN73: 0 | AO73: Spring 2021 | AQ73: 2021 | AS73: 599.75/36 | BC73: 49 | BE73: Spot | BG73: 0.8 | BI73: Life Science | BK73: Spanish | BM73: Reinforced Library | BO73: 16 | BU73: K & Up | BW73: Alissa Thielges
A74: =A72 -> 0 | C74: =C72 -> 0 | E74: =E72 -> 0 | G74: 9781645492085 | I74: 9781645491828 | K74: Los jaguares (Jaguars) | O74: Los gatos salvajes (Spot Wild Cats) | S74: Amicus | U74: 40.8 | W74: 19.95 | Y74: 24.95 | AA74: 0 | AG74: 0 | AH74: 0 | AI74: 0 | AJ74: 0 | AK74: 0 | AL74: 0 | AM74: 0 | AN74: 0 | AO74: Spring 2021 | AQ74: 2021 | AS74: 599.75/5 | BC74: 49 | BE74: Spot | BG74: 0.6 | BI74: Life Science | BK74: Spanish | BM74: Reinforced Library | BO74: 16 | BU74: K & Up | BW74: Alissa Thielges
A75: =A72 -> 0 | C75: =C72 -> 0 | E75: =E72 -> 0 | G75: 9781645492092 | I75: 9781645491835 | K75: Los leopardos (Leopards) | O75: Los gatos salvajes (Spot Wild Cats) | S75: Amicus | U75: 40.8 | W75: 19.95 | Y75: 24.95 | AA75: 0 | AG75: 0 | AH75: 0 | AI75: 0 | AJ75: 0 | AK75: 0 | AL75: 0 | AM75: 0 | AN75: 0 | AO75: Spring 2021 | AQ75: 2021 | AS75: 599.75 | BC75: 49 | BE75: Spot | BG75: 1.3 | BI75: Life Science | BK75: Spanish | BM75: Reinforced Library | BO75: 16 | BU75: K & Up | BW75: Alissa Thielges
A76: =A72 -> 0 | C76: =C72 -> 0 | E76: =E72 -> 0 | G76: 9781645492108 | I76: 9781645491842 | K76: Los linces (Lynx) | O76: Los gatos salvajes (Spot Wild Cats) | S76: Amicus | U76: 40.8 | W76: 19.95 | Y76: 24.95 | AA76: 0 | AG76: 0 | AH76: 0 | AI76: 0 | AJ76: 0 | AK76: 0 | AL76: 0 | AM76: 0 | AN76: 0 | AO76: Spring 2021 | AQ76: 2021 | AS76: 599.75/3 | BC76: 49 | BE76: Spot | BG76: 1.1 | BI76: Life Science | BK76: Spanish | BM76: Reinforced Library | BO76: 16 | BU76: K & Up | BW76: Alissa Thielges
A77: =A72 -> 0 | C77: =C72 -> 0 | E77: =E72 -> 0 | G77: 9781645492078 | I77: 9781645491811 | K77: Los pumas (Pumas) | O77: Los gatos salvajes (Spot Wild Cats) | S77: Amicus | U77: 40.8 | W77: 19.95 | Y77: 24.95 | AA77: 0 | AG77: 0 | AH77: 0 | AI77: 0 | AJ77: 0 | AK77: 0 | AL77: 0 | AM77: 0 | AN77: 0 | AO77: Spring 2021 | AQ77: 2021 | AS77: 599.75/24 | BC77: 49 | BE77: Spot | BG77: 0.9 | BI77: Life Science | BK77: Spanish | BM77: Reinforced Library | BO77: 16 | BU77: K & Up | BW77: Alissa Thielges
A78: =A72 -> 0 | C78: =C72 -> 0 | E78: =E72 -> 0 | G78: 9781645492115 | I78: 9781645491859 | K78: Los tigres (Tigers) | O78: Los gatos salvajes (Spot Wild Cats) | S78: Amicus | U78: 40.8 | W78: 19.95 | Y78: 24.95 | AA78: 0 | AG78: =A78 -> 0 | AH78: =C78 -> 0 | AI78: =E78 -> 0 | AJ78: =SUM(AG78:AI78) -> 0 | AK78: =U78*A78 -> 0 | AL78: =W78*C78 -> 0 | AM78: =Y78*E78 -> 0 | AN78: =SUM(AK78:AM78) -> 0 | AO78: Spring 2021 | AQ78: 2021 | AS78: 599.756 | BC78: 49 | BE78: Spot | BG78: 0.6 | BI78: Life Science | BK78: Spanish | BM78: Reinforced Library | BO78: 16 | BU78: K & Up | BW78: Alissa Thielges
K80: Complete Series of 16 | O80: Making Good Choices | U80: =SUM(U81:U96) -> 717.6 | W80: =SUM(W81:W96) -> 351.2 | Y80: =SUM(Y81:Y96) -> 431.2
A81: =A80 -> 0 | C81: =C80 -> 0 | E81: =E80 -> 0 | G81: 9781645490708 | I81: 9781681519852 | K81: You Can Be Helpful: Step Aside or Pitch In? | O81: Making Good Choices | S81: Amicus | U81: 44.85 | W81: 21.95 | Y81: =W81+5 -> 26.95 | AA81: =IF(AC81=FALSE,AK81+AL81+AM81,0) -> 0 | AG81: 0 | AH81: 0 | AI81: 0 | AJ81: 0 | AK81: 0 | AL81: 0 | AM81: 0 | AN81: 0 | AO81: Spring 2021 | AQ81: 2021 | AS81: 179/.9 | AU81: Q | BC81: 35 | BE81: Amicus Illustrated | BG81: Not Quizzable | BI81: Social and Emotional Health | BK81: English | BM81: Reinforced Library | BO81: 24 | BQ81: K | BS81: 530L | BU81: Grade 2 & up | BW81: Connie Colwell Miller
A82: =A80 -> 0 | C82: =C80 -> 0 | E82: =E80 -> 0 | G82: 9781645490715 | I82: 9781681519869 | K82: You Can Be Polite: Be Rude or Use Tact? | O82: Making Good Choices | S82: Amicus | U82: 44.85 | W82: 21.95 | Y82: 26.95 | AA82: 0 | AG82: 0 | AH82: 0 | AI82: 0 | AJ82: 0 | AK82: 0 | AL82: 0 | AM82: 0 | AN82: 0 | AO82: Spring 2021 | AQ82: 2021 | AS82: 395.1/22 | AU82: Q | BC82: 35 | BE82: Amicus Illustrated | BG82: Not Quizzable | BI82: Social and Emotional Health | BK82: English | BM82: Reinforced Library | BO82: 24 | BQ82: K | BS82: 520L | BU82: Grade 2 & up | BW82: Connie Colwell Miller
A83: =A80 -> 0 | C83: =C80 -> 0 | E83: =E80 -> 0 | G83: 9781681517704 | I83: 9781681516882 | K83: You Can Be Responsible: Do it Now or Put it Off? | O83: Making Good Choices | S83: Amicus | U83: 44.85 | W83: 21.95 | Y83: 26.95 | AA83: 0 | AG83: 0 | AH83: 0 | AI83: 0 | AJ83: 0 | AK83: 0 | AL83: 0 | AM83: 0 | AN83: 0 | AO83: Fall 2019 | AQ83: 2020 | AS83: 179.9 | BC83: 41 | BE83: Amicus Illustrated | BG83: Not Quizzable | BI83: High Interest | BK83: English | BM83: Reinforced Library | BO83: 24 | BQ83: K | BS83: 510L | BU83: K - 3 | BW83: Connie Colwell Miller
A84: =A80 -> 0 | C84: =C80 -> 0 | E84: =E80 -> 0 | G84: 9781681512570 | I84: 9781681511672 | K84: You Can Control Your Voice: Loud or Quiet? | O84: Making Good Choices | S84: Amicus | U84: 44.85 | W84: 21.95 | Y84: 26.95 | AA84: 0 | AG84: 0 | AH84: 0 | AI84: 0 | AJ84: 0 | AK84: 0 | AL84: 0 | AM84: 0 | AN84: 0 | AO84: Fall 2017 | AQ84: 2018 | AS84: 395.5/3 | BC84: 41 | BE84: Amicus Illustrated | BG84: Not Quizzable | BI84: High Interest | BK84: English | BM84: Reinforced Library | BO84: 24 | BQ84: K | BS84: 500L | BU84: K - 3 | BW84: Connie Colwell Miller
A85: =A80 -> 0 | C85: =C80 -> 0 | E85: =E80 -> 0 | G85: 9781681517711 | I85: 9781681516899 | K85: You Can Encourage Others: Tease or Inspire? | O85: Making Good Choices | S85: Amicus | U85: 44.85 | W85: 21.95 | Y85: 26.95 | AA85: 0 | AG85: 0 | AH85: 0 | AI85: 0 | AJ85: 0 | AK85: 0 | AL85: 0 | AM85: 0 | AN85: 0 | AO85: Fall 2019 | AQ85: 2020 | AS85: 158.3 | BC85: 41 | BE85: Amicus Illustrated | BG85: Not Quizzable | BI85: High Interest | BK85: English | BM85: Reinforced Library | BO85: 24 | BQ85: K | BS85: 490L | BU85: K - 3 | BW85: Connie Colwell Miller
A86: =A80 -> 0 | C86: =C80 -> 0 | E86: =E80 -> 0 | G86: 9781681517728 | I86: 9781681516905 | K86: You Can Follow Rules: Cheat or Play Fair? | O86: Making Good Choices | S86: Amicus | U86: 44.85 | W86: 21.95 | Y86: 26.95 | AA86: 0 | AG86: 0 | AH86: 0 | AI86: 0 | AJ86: 0 | AK86: 0 | AL86: 0 | AM86: 0 | AN86: 0 | AO86: Fall 2019 | AQ86: 2020 | AS86: 796.01 | BC86: 41 | BE86: Amicus Illustrated | BG86: Not Quizzable | BI86: High Interest | BK86: English | BM86: Reinforced Library | BO86: 24 | BQ86: K | BS86: 490L | BU86: K - 3 | BW86: Connie Colwell Miller
A87: =A80 -> 0 | C87: =C80 -> 0 | E87: =E80 -> 0 | G87: 9781681512525 | I87: 9781681511627 | K87: You Can Handle Conflict: Hands or Words? | O87: Making Good Choices | S87: Amicus | U87: 44.85 | W87: 21.95 | Y87: 26.95 | AA87: 0 | AG87: 0 | AH87: 0 | AI87: 0 | AJ87: 0 | AK87: 0 | AL87: 0 | AM87: 0 | AN87: 0 | AO87: Fall 2017 | AQ87: 2018 | AS87: 155.4/192 | BC87: 41 | BE87: Amicus Illustrated | BG87: Not Quizzable | BI87: High Interest | BK87: English | BM87: Reinforced Library | BO87: 24 | BQ87: K | BS87: 500L | BU87: K - 3 | BW87: Connie Colwell Miller
A88: =A80 -> 0 | C88: =C80 -> 0 | E88: =E80 -> 0 | G88: 9781681512563 | I88: 9781681511665 | K88: You Can Listen to Directions: Stop or Go? | O88: Making Good Choices | S88: Amicus | U88: 44.85 | W88: 21.95 | Y88: 26.95 | AA88: 0 | AG88: 0 | AH88: 0 | AI88: 0 | AJ88: 0 | AK88: 0 | AL88: 0 | AM88: 0 | AN88: 0 | AO88: Fall 2017 | AQ88: 2018 | AS88: 155.4/19 | BC88: 41 | BE88: Amicus Illustrated | BG88: Not Quizzable | BI88: High Interest | BK88: English | BM88: Reinforced Library | BO88: 24 | BQ88: K | BS88: 510L | BU88: K - 3 | BW88: Connie Colwell Miller
A89: =A80 -> 0 | C89: =C80 -> 0 | E89: =E80 -> 0 | G89: 9781681517735 | I89: 9781681516912 | K89: You Can Make Changes: Ask or Ignore? | O89: Making Good Choices | S89: Amicus | U89: 44.85 | W89: 21.95 | Y89: 26.95 | AA89: 0 | AG89: 0 | AH89: 0 | AI89: 0 | AJ89: 0 | AK89: 0 | AL89: 0 | AM89: 0 | AN89: 0 | AO89: Fall 2019 | AQ89: 2020 | AS89: 320.083 | BC89: 41 | BE89: Amicus Illustrated | BG89: Not Quizzable | BI89: High Interest | BK89: English | BM89: Reinforced Library | BO89: 24 | BQ89: K | BS89: 590L | BU89: K - 3 | BW89: Connie Colwell Miller
A90: =A80 -> 0 | C90: =C80 -> 0 | E90: =E80 -> 0 | G90: 9781645490722 | I90: 9781681519876 | K90: You Can Persevere: Quit or Keep Going? | O90: Making Good Choices | S90: Amicus | U90: 44.85 | W90: 21.95 | Y90: 26.95 | AA90: 0 | AG90: 0 | AH90: 0 | AI90: 0 | AJ90: 0 | AK90: 0 | AL90: 0 | AM90: 0 | AN90: 0 | AO90: Spring 2021 | AQ90: 2021 | AS90: 179/.9 | AU90: Q | BC90: 35 | BE90: Amicus Illustrated | BG90: Not Quizzable | BI90: Social and Emotional Health | BK90: English | BM90: Reinforced Library | BO90: 24 | BQ90: K | BS90: 580L | BU90: Grade 2 & up | BW90: Connie Colwell Miller
A91: =A80 -> 0 | C91: =C80 -> 0 | E91: =E80 -> 0 | G91: 9781681517742 | I91: 9781681516929 | K91: You Can Respect Differences: Assume or Find Out? | O91: Making Good Choices | S91: Amicus | U91: 44.85 | W91: 21.95 | Y91: 26.95 | AA91: 0 | AG91: 0 | AH91: 0 | AI91: 0 | AJ91: 0 | AK91: 0 | AL91: 0 | AM91: 0 | AN91: 0 | AO91: Fall 2019 | AQ91: 2020 | AS91: 179.9 | BC91: 41 | BE91: Amicus Illustrated | BG91: Not Quizzable | BI91: High Interest | BK91: English | BM91: Reinforced Library | BO91: 24 | BQ91: K | BS91: 490L | BU91: K - 3 | BW91: Connie Colwell Miller
A92: =A80 -> 0 | C92: =C80 -> 0 | E92: =E80 -> 0 | G92: 9781681512556 | I92: 9781681511658 | K92: You Can Stay in Control: Wild or Calm? | O92: Making Good Choices | S92: Amicus | U92: 44.85 | W92: 21.95 | Y92: 26.95 | AA92: 0 | AG92: 0 | AH92: 0 | AI92: 0 | AJ92: 0 | AK92: 0 | AL92: 0 | AM92: 0 | AN92: 0 | AO92: Fall 2017 | AQ92: 2018 | AS92: 155.4/19 | BC92: 41 | BE92: Amicus Illustrated | BG92: Not Quizzable | BI92: High Interest | BK92: English | BM92: Reinforced Library | BO92: 24 | BQ92: K | BS92: 500L | BU92: K - 3 | BW92: Connie Colwell Miller
A93: =A80 -> 0 | C93: =C80 -> 0 | E93: =E80 -> 0 | G93: 9781681517759 | I93: 9781681516936 | K93: You Can Stop Bullying: Stand By or Stand Up? | O93: Making Good Choices | S93: Amicus | U93: 44.85 | W93: 21.95 | Y93: 26.95 | AA93: 0 | AG93: 0 | AH93: 0 | AI93: 0 | AJ93: 0 | AK93: 0 | AL93: 0 | AM93: 0 | AN93: 0 | AO93: Fall 2019 | AQ93: 2020 | AS93: 302.34/3 | BC93: 41 | BE93: Amicus Illustrated | BG93: Not Quizzable | BI93: High Interest | BK93: English | BM93: Reinforced Library | BO93: 24 | BQ93: K | BS93: 510L | BU93: K - 3 | BW93: Connie Colwell Miller
A94: =A80 -> 0 | C94: =C80 -> 0 | E94: =E80 -> 0 | G94: 9781645490739 | I94: 9781681519883 | K94: You Can Use Money Wisely: Spend or Save? | O94: Making Good Choices | S94: Amicus | U94: 44.85 | W94: 21.95 | Y94: 26.95 | AA94: 0 | AG94: 0 | AH94: 0 | AI94: 0 | AJ94: 0 | AK94: 0 | AL94: 0 | AM94: 0 | AN94: 0 | AO94: Spring 2021 | AQ94: 2021 | AS94: 332.4 | AU94: Q | BC94: 35 | BE94: Amicus Illustrated | BG94: Not Quizzable | BI94: Social and Emotional Health | BK94: English | BM94: Reinforced Library | BO94: 24 | BQ94: K | BS94: 520L | BU94: Grade 2 & up | BW94: Connie Colwell Miller
A95: =A80 -> 0 | C95: =C80 -> 0 | E95: =E80 -> 0 | G95: 9781681512549 | I95: 9781681511641 | K95: You're Angry: Throw a Fit or Talk it Out? | O95: Making Good Choices | S95: Amicus | U95: 44.85 | W95: 21.95 | Y95: 26.95 | AA95: 0 | AG95: 0 | AH95: 0 | AI95: 0 | AJ95: 0 | AK95: 0 | AL95: 0 | AM95: 0 | AN95: 0 | AO95: Fall 2017 | AQ95: 2018 | AS95: 155.4/1247 | BC95: 41 | BE95: Amicus Illustrated | BG95: Not Quizzable | BI95: High Interest | BK95: English | BM95: Reinforced Library | BO95: 24 | BQ95: K | BS95: 500L | BU95: K - 3 | BW95: Connie Colwell Miller
A96: =A80 -> 0 | C96: =C80 -> 0 | E96: =E80 -> 0 | G96: 9781681512532 | I96: 9781681511634 | K96: You're in Trouble: Fib or Truth? | O96: Making Good Choices | S96: Amicus | U96: 44.85 | W96: 21.95 | Y96: 26.95 | AA96: 0 | AG96: 0 | AH96: 0 | AI96: 0 | AJ96: 0 | AK96: 0 | AL96: 0 | AM96: 0 | AN96: 0 | AO96: Fall 2017 | AQ96: 2018 | AS96: 177/.3 | BC96: 41 | BE96: Amicus Illustrated | BG96: Not Quizzable | BI96: High Interest | BK96: English | BM96: Reinforced Library | BO96: 24 | BQ96: K | BS96: 500L | BU96: K - 3 | BW96: Connie Colwell Miller
K98: Complete Series of 6 | O98: Mi vida con… (My Life With…) | U98: =SUM(U99:U104) -> 269.1 | W98: =SUM(W99:W104) -> 131.7 | Y98: =SUM(Y99:Y104) -> 161.7
A99: =A98 -> 0 | C99: =C98 -> 0 | E99: =E98 -> 0 | G99: 9781645492290 | I99: 9781645492030 | K99: Mi vida con autismo (Autism) | O99: Mi vida con… (My Life With…) | S99: Amicus | U99: 44.85 | W99: 21.95 | Y99: =W99+5 -> 26.95 | AA99: =IF(AC99=FALSE,AK99+AL99+AM99,0) -> 0 | AG99: 0 | AH99: 0 | AI99: 0 | AJ99: 0 | AK99: 0 | AL99: 0 | AM99: 0 | AN99: 0 | AO99: Spring 2021 | AQ99: 2021 | AS99: 618.92/85882 | BC99: 48 | BE99: Amicus Illustrated | BG99: Not Quizzable | BI99: Social and Emotional Health | BK99: Spanish | BM99: Reinforced Library | BO99: 24 | BU99: Grade 2 & up | BW99: Mari Schuh
A100: =A98 -> 0 | C100: =C98 -> 0 | E100: =E98 -> 0 | G100: 9781645492269 | I100: 9781645492009 | K100: Mi vida con ceguera (Blindness) | O100: Mi vida con… (My Life With…) | S100: Amicus | U100: 44.85 | W100: 21.95 | Y100: 26.95 | AA100: 0 | AG100: 0 | AH100: 0 | AI100: 0 | AJ100: 0 | AK100: 0 | AL100: 0 | AM100: 0 | AN100: 0 | AO100: Spring 2021 | AQ100: 2021 | AS100: 362.4/1092 | BC100: 48 | BE100: Amicus Illustrated | BG100: Not Quizzable | BI100: Social and Emotional Health | BK100: Spanish | BM100: Reinforced Library | BO100: 24 | BU100: Grade 2 & up | BW100: Mari Schuh
A101: =A98 -> 0 | C101: =C98 -> 0 | E101: =E98 -> 0 | G101: 9781645492313 | I101: 9781645492054 | K101: Mi vida con dislexia (Dyslexia) | O101: Mi vida con… (My Life With…) | S101: Amicus | U101: 44.85 | W101: 21.95 | Y101: 26.95 | AA101: 0 | AG101: 0 | AH101: 0 | AI101: 0 | AJ101: 0 | AK101: 0 | AL101: 0 | AM101: 0 | AN101: 0 | AO101: Spring 2021 | AQ101: 2021 | AS101: 618.92/8553 | BC101: 48 | BE101: Amicus Illustrated | BG101: Not Quizzable | BI101: Social and Emotional Health | BK101: Spanish | BM101: Reinforced Library | BO101: 24 | BU101: Grade 2 & up | BW101: Mari Schuh
A102: =A98 -> 0 | C102: =C98 -> 0 | E102: =E98 -> 0 | G102: 9781645492306 | I102: 9781645492047 | K102: Mi vida con síndrome de Down (Down Syndrome) | O102: Mi vida con… (My Life With…) | S102: Amicus | U102: 44.85 | W102: 21.95 | Y102: 26.95 | AA102: 0 | AG102: 0 | AH102: 0 | AI102: 0 | AJ102: 0 | AK102: 0 | AL102: 0 | AM102: 0 | AN102: 0 | AO102: Spring 2021 | AQ102: 2021 | AS102: 616.85/88420092 | BC102: 48 | BE102: Amicus Illustrated | BG102: Not Quizzable | BI102: Social and Emotional Health | BK102: Spanish | BM102: Reinforced Library | BO102: 24 | BU102: Grade 2 & up | BW102: Mari Schuh
A103: =A98 -> 0 | C103: =C98 -> 0 | E103: =E98 -> 0 | G103: 9781645492276 | I103: 9781645492016 | K103: Mi vida con sordera (Deafness) | O103: Mi vida con… (My Life With…) | S103: Amicus | U103: 44.85 | W103: 21.95 | Y103: 26.95 | AA103: 0 | AG103: 0 | AH103: 0 | AI103: 0 | AJ103: 0 | AK103: 0 | AL103: 0 | AM103: 0 | AN103: 0 | AO103: Spring 2021 | AQ103: 2021 | AS103: 362.4/2092 | BC103: 48 | BE103: Amicus Illustrated | BG103: Not Quizzable | BI103: Social and Emotional Health | BK103: Spanish | BM103: Reinforced Library | BO103: 24 | BU103: Grade 2 & up | BW103: Mari Schuh
A104: =A98 -> 0 | C104: =C98 -> 0 | E104: =E98 -> 0 | G104: 9781645492283 | I104: 9781645492023 | K104: Mi vida con TDAH (ADHD) | O104: Mi vida con… (My Life With…) | S104: Amicus | U104: 44.85 | W104: 21.95 | Y104: 26.95 | AA104: 0 | AG104: 0 | AH104: 0 | AI104: 0 | AJ104: 0 | AK104: 0 | AL104: 0 | AM104: 0 | AN104: 0 | AO104: Spring 2021 | AQ104: 2021 | AS104: 618.92/8589 | BC104: 48 | BE104: Amicus Illustrated | BG104: Not Quizzable | BI104: Social and Emotional Health | BK104: Spanish | BM104: Reinforced Library | BO104: 24 | BU104: Grade 2 & up | BW104: Mari Schuh
K106: Complete Series of 6 | O106: My Life With . . . | U106: =SUM(U107:U112) -> 269.1 | W106: =SUM(W107:W112) -> 131.7 | Y106: =SUM(Y107:Y112) -> 161.7
A107: =A106 -> 0 | C107: =C106 -> 0 | E107: =E106 -> 0 | G107: 9781645490760 | I107: 9781681519913 | K107: My Life with ADHD | O107: My Life With . . . | S107: Amicus | U107: 44.85 | W107: 21.95 | Y107: =W107+5 -> 26.95 | AA107: =IF(AC107=FALSE,AK107+AL107+AM107,0) -> 0 | AG107: 0 | AH107: 0 | AI107: 0 | AJ107: 0 | AK107: 0 | AL107: 0 | AM107: 0 | AN107: 0 | AO107: Spring 2021 | AQ107: 2021 | AS107: 618.92/8589 | AU107: Q | BC107: 37 | BE107: Amicus Illustrated | BI107: Social and Emotional Health | BK107: English | BM107: Reinforced Library | BO107: 24 | BQ107: K | BS107: 540L | BU107: Grade 2 & up | BW107: Mari Schuh
A108: =A106 -> 0 | C108: =C106 -> 0 | E108: =E106 -> 0 | G108: 9781645490777 | I108: 9781681519920 | K108: My Life with Autism | O108: My Life With . . . | S108: Amicus | U108: 44.85 | W108: 21.95 | Y108: 26.95 | AA108: 0 | AG108: 0 | AH108: 0 | AI108: 0 | AJ108: 0 | AK108: 0 | AL108: 0 | AM108: 0 | AN108: 0 | AO108: Spring 2021 | AQ108: 2021 | AS108: 618.92/85882 | AU108: Q | BC108: 37 | BE108: Amicus Illustrated | BI108: Social and Emotional Health | BK108: English | BM108: Reinforced Library | BO108: 24 | BQ108: K | BS108: 510L | BU108: Grade 2 & up | BW108: Mari Schuh
A109: =A106 -> 0 | C109: =C106 -> 0 | E109: =E106 -> 0 | G109: 9781645490746 | I109: 9781681519890 | K109: My Life with Blindness | O109: My Life With . . . | S109: Amicus | U109: 44.85 | W109: 21.95 | Y109: 26.95 | AA109: 0 | AG109: 0 | AH109: 0 | AI109: 0 | AJ109: 0 | AK109: 0 | AL109: 0 | AM109: 0 | AN109: 0 | AO109: Spring 2021 | AQ109: 2021 | AS109: 362.4/1092 | AU109: Q | BC109: 37 | BE109: Amicus Illustrated | BI109: Social and Emotional Health | BK109: English | BM109: Reinforced Library | BO109: 24 | BQ109: K | BS109: 510L | BU109: Grade 2 & up | BW109: Mari Schuh
A110: =A106 -> 0 | C110: =C106 -> 0 | E110: =E106 -> 0 | G110: 9781645490753 | I110: 9781681519906 | K110: My Life with Deafness | O110: My Life With . . . | S110: Amicus | U110: 44.85 | W110: 21.95 | Y110: 26.95 | AA110: 0 | AG110: 0 | AH110: 0 | AI110: 0 | AJ110: 0 | AK110: 0 | AL110: 0 | AM110: 0 | AN110: 0 | AO110: Spring 2021 | AQ110: 2021 | AS110: 362.4/2092 | AU110: Q | BC110: 37 | BE110: Amicus Illustrated | BI110: Social and Emotional Health | BK110: English | BM110: Reinforced Library | BO110: 24 | BQ110: K | BS110: 510L | BU110: Grade 2 & up | BW110: Mari Schuh
A111: =A106 -> 0 | C111: =C106 -> 0 | E111: =E106 -> 0 | G111: 9781645490784 | I111: 9781681519937 | K111: My Life with Down Syndrome | O111: My Life With . . . | S111: Amicus | U111: 44.85 | W111: 21.95 | Y111: 26.95 | AA111: 0 | AG111: 0 | AH111: 0 | AI111: 0 | AJ111: 0 | AK111: 0 | AL111: 0 | AM111: 0 | AN111: 0 | AO111: Spring 2021 | AQ111: 2021 | AS111: 616.85/88420092 | AU111: Q | BC111: 37 | BE111: Amicus Illustrated | BI111: Social and Emotional Health | BK111: English | BM111: Reinforced Library | BO111: 24 | BQ111: K | BS111: 520L | BU111: Grade 2 & up | BW111: Mari Schuh
A112: =A106 -> 0 | C112: =C106 -> 0 | E112: =E106 -> 0 | G112: 9781645490791 | I112: 9781681519944 | K112: My Life with Dyslexia | O112: My Life With . . . | S112: Amicus | U112: 44.85 | W112: 21.95 | Y112: 26.95 | AA112: 0 | AG112: 0 | AH112: 0 | AI112: 0 | AJ112: 0 | AK112: 0 | AL112: 0 | AM112: 0 | AN112: 0 | AO112: Spring 2021 | AQ112: 2021 | AS112: 618.92/8553 | AU112: Q | BC112: 37 | BE112: Amicus Illustrated | BI112: Social and Emotional Health | BK112: English | BM112: Reinforced Library | BO112: 24 | BQ112: K | BS112: 520L | BU112: Grade 2 & up | BW112: Mari Schuh
K114: Complete Series of 6 | O114: Spot Extreme Weather | U114: =SUM(U115:U120) -> 244.8 | W114: =SUM(W115:W120) -> 119.7 | Y114: =SUM(Y115:Y120) -> 149.7
A115: =A114 -> 0 | C115: =C114 -> 0 | E115: =E114 -> 0 | G115: 9781645490265 | I115: 9781681519418 | K115: Blizzards | O115: Spot Extreme Weather | S115: Amicus | U115: 40.8 | W115: 19.95 | Y115: =W115+5 -> 24.95 | AA115: =IF(AC115=FALSE,AK115+AL115+AM115,0) -> 0 | AG115: 0 | AH115: 0 | AI115: 0 | AJ115: 0 | AK115: 0 | AL115: 0 | AM115: 0 | AN115: 0 | AO115: Spring 2021 | AQ115: 2021 | AS115: 551.55/5 | AU115: Q | BC115: 17 | BE115: Spot | BG115: 0.9 | BI115: Science | BK115: English | BM115: Reinforced Library | BO115: 16 | BQ115: D | BU115: K & Up | BW115: Anastasia Suen
A116: =A114 -> 0 | C116: =C114 -> 0 | E116: =E114 -> 0 | G116: 9781645490272 | I116: 9781681519425 | K116: Earthquakes | O116: Spot Extreme Weather | S116: Amicus | U116: 40.8 | W116: 19.95 | Y116: 24.95 | AA116: 0 | AG116: 0 | AH116: 0 | AI116: 0 | AJ116: 0 | AK116: 0 | AL116: 0 | AM116: 0 | AN116: 0 | AO116: Spring 2021 | AQ116: 2021 | AS116: 551.22 | AU116: Q | BC116: 17 | BE116: Spot | BG116: 0.9 | BI116: Science | BK116: English | BM116: Reinforced Library | BO116: 16 | BQ116: D | BU116: K & Up | BW116: Anastasia Suen
A117: =A114 -> 0 | C117: =C114 -> 0 | E117: =E114 -> 0 | G117: 9781645490289 | I117: 9781681519432 | K117: Floods | O117: Spot Extreme Weather | S117: Amicus | U117: 40.8 | W117: 19.95 | Y117: 24.95 | AA117: 0 | AG117: 0 | AH117: 0 | AI117: 0 | AJ117: 0 | AK117: 0 | AL117: 0 | AM117: 0 | AN117: 0 | AO117: Spring 2021 | AQ117: 2021 | AS117: 551.48/9 | AU117: Q | BC117: 17 | BE117: Spot | BG117: 0.8 | BI117: Science | BK117: English | BM117: Reinforced Library | BO117: 16 | BQ117: D | BU117: K & Up | BW117: Anastasia Suen
A118: =A114 -> 0 | C118: =C114 -> 0 | E118: =E114 -> 0 | G118: 9781645490296 | I118: 9781681519449 | K118: Hurricanes | O118: Spot Extreme Weather | S118: Amicus | U118: 40.8 | W118: 19.95 | Y118: 24.95 | AA118: 0 | AG118: 0 | AH118: 0 | AI118: 0 | AJ118: 0 | AK118: 0 | AL118: 0 | AM118: 0 | AN118: 0 | AO118: Spring 2021 | AQ118: 2021 | AS118: 551.55/2 | AU118: Q | BC118: 17 | BE118: Spot | BG118: 1 | BI118: Science | BK118: English | BM118: Reinforced Library | BO118: 16 | BQ118: D | BU118: K & Up | BW118: Anastasia Suen
A119: =A114 -> 0 | C119: =C114 -> 0 | E119: =E114 -> 0 | G119: 9781645490302 | I119: 9781681519456 | K119: Tornadoes | O119: Spot Extreme Weather | S119: Amicus | U119: 40.8 | W119: 19.95 | Y119: 24.95 | AA119: 0 | AG119: 0 | AH119: 0 | AI119: 0 | AJ119: 0 | AK119: 0 | AL119: 0 | AM119: 0 | AN119: 0 | AO119: Spring 2021 | AQ119: 2021 | AS119: 551.55/3 | AU119: Q | BC119: 17 | BE119: Spot | BG119: 0.9 | BI119: Science | BK119: English | BM119: Reinforced Library | BO119: 16 | BQ119: D | BU119: K & Up | BW119: Anastasia Suen
A120: =A114 -> 0 | C120: =C114 -> 0 | E120: =E114 -> 0 | G120: 9781645490319 | I120: 9781681519463 | K120: Wildfires | O120: Spot Extreme Weather | S120: Amicus | U120: 40.8 | W120: 19.95 | Y120: 24.95 | AA120: 0 | AG120: 0 | AH120: 0 | AI120: 0 | AJ120: 0 | AK120: 0 | AL120: 0 | AM120: 0 | AN120: 0 | AO120: Spring 2021 | AQ120: 2021 | AS120: 634.9/618 | AU120: Q | BC120: 17 | BE120: Spot | BG120: 0.9 | BI120: Science | BK120: English | BM120: Reinforced Library | BO120: 16 | BQ120: D | BU120: K & Up | BW120: Anastasia Suen
K122: Complete Series of 18 | O122: Spot Ocean Animals | U122: =SUM(U123:U140) -> 734.4 | W122: =SUM(W123:W140) -> 359.1 | Y122: =SUM(Y123:Y140) -> 449.1
A123: =A122 -> 0 | C123: =C122 -> 0 | E123: =E122 -> 0 | G123: 9781681517124 | I123: 9781681516301 | K123: Clown Fish | O123: Spot Ocean Animals | S123: Amicus | U123: 40.8 | W123: 19.95 | Y123: =W123+5 -> 24.95 | AA123: =IF(AC123=FALSE,AK123+AL123+AM123,0) -> 0 | AG123: 0 | AH123: 0 | AI123: 0 | AJ123: 0 | AK123: 0 | AL123: 0 | AM123: 0 | AN123: 0 | AO123: Fall 2019 | AQ123: 2020 | AS123: 597/.72 | BC123: 24 | BE123: Spot | BG123: 0.9 | BI123: Animals & Nature | BK123: English | BM123: Reinforced Library | BO123: 16 | BQ123: C | BS123: 360L | BU123: PreK - 3 | BW123: Mari Schuh
A124: =A122 -> 0 | C124: =C122 -> 0 | E124: =E122 -> 0 | G124: 9781645491507 | I124: 9781645491088 | K124: Corals | O124: Spot Ocean Animals | S124: Amicus | U124: 40.8 | W124: 19.95 | Y124: 24.95 | AA124: 0 | AG124: 0 | AH124: 0 | AI124: 0 | AJ124: 0 | AK124: 0 | AL124: 0 | AM124: 0 | AN124: 0 | AO124: Spring 2021 | AQ124: 2021 | AS124: 593.6 | AU124: Q | BC124: 19 | BE124: Spot | BG124: 0.9 | BI124: Life Science | BK124: English | BM124: Reinforced Library | BO124: 16 | BQ124: C | BU124: K & Up | BW124: Mari Schuh
A125: =A122 -> 0 | C125: =C122 -> 0 | E125: =E122 -> 0 | G125: 9781681514604 | I125: 9781681513782 | K125: Crabs | O125: Spot Ocean Animals | S125: Amicus | U125: 40.8 | W125: 19.95 | Y125: 24.95 | AA125: 0 | AG125: 0 | AH125: 0 | AI125: 0 | AJ125: 0 | AK125: 0 | AL125: 0 | AM125: 0 | AN125: 0 | AO125: Fall 2018 | AQ125: 2019 | AS125: 595.3/86 | BC125: 24 | BE125: Spot | BG125: 0.9 | BI125: Animals & Nature | BK125: English | BM125: Reinforced Library | BO125: 16 | BQ125: C | BS125: 250L | BU125: PreK - 3 | BW125: Mari Schuh
A126: =A122 -> 0 | C126: =C122 -> 0 | E126: =E122 -> 0 | G126: 9781681514611 | I126: 9781681513799 | K126: Dolphins | O126: Spot Ocean Animals | S126: Amicus | U126: 40.8 | W126: 19.95 | Y126: 24.95 | AA126: 0 | AG126: 0 | AH126: 0 | AI126: 0 | AJ126: 0 | AK126: 0 | AL126: 0 | AM126: 0 | AN126: 0 | AO126: Fall 2018 | AQ126: 2019 | AS126: 599.53 | BC126: 24 | BE126: Spot | BG126: 0.9 | BI126: Animals & Nature | BK126: English | BM126: Reinforced Library | BO126: 16 | BQ126: C | BS126: 250L | BU126: PreK - 3 | BW126: Mari Schuh
A127: =A122 -> 0 | C127: =C122 -> 0 | E127: =E122 -> 0 | G127: 9781645491521 | I127: 9781645491101 | K127: Eels | O127: Spot Ocean Animals | S127: Amicus | U127: 40.8 | W127: 19.95 | Y127: 24.95 | AA127: 0 | AG127: 0 | AH127: 0 | AI127: 0 | AJ127: 0 | AK127: 0 | AL127: 0 | AM127: 0 | AN127: 0 | AO127: Spring 2021 | AQ127: 2021 | AS127: 597/.43 | AU127: Q | BC127: 19 | BE127: Spot | BG127: 0.9 | BI127: Life Science | BK127: English | BM127: Reinforced Library | BO127: 16 | BQ127: C | BU127: K & Up | BW127: Mari Schuh
A128: =A122 -> 0 | C128: =C122 -> 0 | E128: =E122 -> 0 | G128: 9781681514628 | I128: 9781681513805 | K128: Jellyfish | O128: Spot Ocean Animals | S128: Amicus | U128: 40.8 | W128: 19.95 | Y128: 24.95 | AA128: 0 | AG128: 0 | AH128: 0 | AI128: 0 | AJ128: 0 | AK128: 0 | AL128: 0 | AM128: 0 | AN128: 0 | AO128: Fall 2018 | AQ128: 2019 | AS128: 593.5/3 | BC128: 24 | BE128: Spot | BG128: 0.9 | BI128: Animals & Nature | BK128: English | BM128: Reinforced Library | BO128: 16 | BQ128: C | BS128: 260L | BU128: PreK - 3 | BW128: Mari Schuh
A129: =A122 -> 0 | C129: =C122 -> 0 | E129: =E122 -> 0 | G129: 9781645491514 | I129: 9781645491095 | K129: Lobsters | O129: Spot Ocean Animals | S129: Amicus | U129: 40.8 | W129: 19.95 | Y129: 24.95 | AA129: 0 | AG129: 0 | AH129: 0 | AI129: 0 | AJ129: 0 | AK129: 0 | AL129: 0 | AM129: 0 | AN129: 0 | AO129: Spring 2021 | AQ129: 2021 | AS129: 595.3/84 | AU129: Q | BC129: 19 | BE129: Spot | BG129: 0.9 | BI129: Life Science | BK129: English | BM129: Reinforced Library | BO129: 16 | BQ129: C | BU129: K & Up | BW129: Mari Schuh
A130: =A122 -> 0 | C130: =C122 -> 0 | E130: =E122 -> 0 | G130: 9781645491538 | I130: 9781645491118 | K130: Manatees | O130: Spot Ocean Animals | S130: Amicus | U130: 40.8 | W130: 19.95 | Y130: 24.95 | AA130: 0 | AG130: 0 | AH130: 0 | AI130: 0 | AJ130: 0 | AK130: 0 | AL130: 0 | AM130: 0 | AN130: 0 | AO130: Spring 2021 | AQ130: 2021 | AS130: 599.55 | AU130: Q | BC130: 19 | BE130: Spot | BG130: 0.9 | BI130: Life Science | BK130: English | BM130: Reinforced Library | BO130: 16 | BQ130: C | BU130: K & Up | BW130: Mari Schuh
A131: =A122 -> 0 | C131: =C122 -> 0 | E131: =E122 -> 0 | G131: 9781681514635 | I131: 9781681513812 | K131: Octopuses | O131: Spot Ocean Animals | S131: Amicus | U131: 40.8 | W131: 19.95 | Y131: 24.95 | AA131: 0 | AG131: 0 | AH131: 0 | AI131: 0 | AJ131: 0 | AK131: 0 | AL131: 0 | AM131: 0 | AN131: 0 | AO131: Fall 2018 | AQ131: 2019 | AS131: 594/.56 | BC131: 24 | BE131: Spot | BG131: 0.9 | BI131: Animals & Nature | BK131: English | BM131: Reinforced Library | BO131: 16 | BQ131: C | BS131: 280L | BU131: PreK - 3 | BW131: Mari Schuh
A132: =A122 -> 0 | C132: =C122 -> 0 | E132: =E122 -> 0 | G132: 9781645491545 | I132: 9781645491125 | K132: Sea Dragons | O132: Spot Ocean Animals | S132: Amicus | U132: 40.8 | W132: 19.95 | Y132: 24.95 | AA132: 0 | AG132: 0 | AH132: 0 | AI132: 0 | AJ132: 0 | AK132: 0 | AL132: 0 | AM132: 0 | AN132: 0 | AO132: Spring 2021 | AQ132: 2021 | AS132: 597.679 | AU132: Q | BC132: 19 | BE132: Spot | BG132: 0.9 | BI132: Life Science | BK132: English | BM132: Reinforced Library | BO132: 16 | BQ132: C | BU132: K & Up | BW132: Mari Schuh
A133: =A122 -> 0 | C133: =C122 -> 0 | E133: =E122 -> 0 | G133: 9781681517131 | I133: 9781681516318 | K133: Sea Horses | O133: Spot Ocean Animals | S133: Amicus | U133: 40.8 | W133: 19.95 | Y133: 24.95 | AA133: 0 | AG133: 0 | AH133: 0 | AI133: 0 | AJ133: 0 | AK133: 0 | AL133: 0 | AM133: 0 | AN133: 0 | AO133: Fall 2019 | AQ133: 2020 | AS133: 597/.6798 | BC133: 24 | BE133: Spot | BG133: 0.9 | BI133: Animals & Nature | BK133: English | BM133: Reinforced Library | BO133: 16 | BQ133: C | BS133: 390L | BU133: PreK - 3 | BW133: Mari Schuh
A134: =A122 -> 0 | C134: =C122 -> 0 | E134: =E122 -> 0 | G134: 9781681517148 | I134: 9781681516325 | K134: Sea Stars | O134: Spot Ocean Animals | S134: Amicus | U134: 40.8 | W134: 19.95 | Y134: 24.95 | AA134: 0 | AG134: 0 | AH134: 0 | AI134: 0 | AJ134: 0 | AK134: 0 | AL134: 0 | AM134: 0 | AN134: 0 | AO134: Fall 2019 | AQ134: 2020 | AS134: 593.9/3 | BC134: 24 | BE134: Spot | BG134: 0.9 | BI134: Animals & Nature | BK134: English | BM134: Reinforced Library | BO134: 16 | BQ134: C | BS134: 270L | BU134: PreK - 3 | BW134: Mari Schuh
A135: =A122 -> 0 | C135: =C122 -> 0 | E135: =E122 -> 0 | G135: 9781681514642 | I135: 9781681513829 | K135: Sea Turtles | O135: Spot Ocean Animals | S135: Amicus | U135: 40.8 | W135: 19.95 | Y135: 24.95 | AA135: 0 | AG135: 0 | AH135: 0 | AI135: 0 | AJ135: 0 | AK135: 0 | AL135: 0 | AM135: 0 | AN135: 0 | AO135: Fall 2018 | AQ135: 2019 | AS135: 597.92/8 | BC135: 24 | BE135: Spot | BG135: 0.9 | BI135: Animals & Nature | BK135: English | BM135: Reinforced Library | BO135: 16 | BQ135: C | BS135: 350L | BU135: PreK - 3 | BW135: Mari Schuh
A136: =A122 -> 0 | C136: =C122 -> 0 | E136: =E122 -> 0 | G136: 9781681514659 | I136: 9781681513836 | K136: Sharks | O136: Spot Ocean Animals | S136: Amicus | U136: 40.8 | W136: 19.95 | Y136: 24.95 | AA136: 0 | AG136: 0 | AH136: 0 | AI136: 0 | AJ136: 0 | AK136: 0 | AL136: 0 | AM136: 0 | AN136: 0 | AO136: Fall 2018 | AQ136: 2019 | AS136: 597.3 | BC136: 24 | BE136: Spot | BG136: 0.9 | BI136: Animals & Nature | BK136: English | BM136: Reinforced Library | BO136: 16 | BQ136: C | BS136: 300L | BU136: PreK - 3 | BW136: Mari Schuh
A137: =A122 -> 0 | C137: =C122 -> 0 | E137: =E122 -> 0 | G137: 9781645491552 | I137: 9781645491132 | K137: Squids | O137: Spot Ocean Animals | S137: Amicus | U137: 40.8 | W137: 19.95 | Y137: 24.95 | AA137: 0 | AG137: 0 | AH137: 0 | AI137: 0 | AJ137: 0 | AK137: 0 | AL137: 0 | AM137: 0 | AN137: 0 | AO137: Spring 2021 | AQ137: 2021 | AS137: 594/.58 | AU137: Q | BC137: 19 | BE137: Spot | BG137: 0.8 | BI137: Life Science | BK137: English | BM137: Reinforced Library | BO137: 16 | BQ137: C | BU137: K & Up | BW137: Mari Schuh
A138: =A122 -> 0 | C138: =C122 -> 0 | E138: =E122 -> 0 | G138: 9781681517155 | I138: 9781681516332 | K138: Stingrays | O138: Spot Ocean Animals | S138: Amicus | U138: 40.8 | W138: 19.95 | Y138: 24.95 | AA138: 0 | AG138: 0 | AH138: 0 | AI138: 0 | AJ138: 0 | AK138: 0 | AL138: 0 | AM138: 0 | AN138: 0 | AO138: Fall 2019 | AQ138: 2020 | AS138: 597.3/5 | BC138: 24 | BE138: Spot | BG138: 0.9 | BI138: Animals & Nature | BK138: English | BM138: Reinforced Library | BO138: 16 | BQ138: C | BS138: 340L | BU138: PreK - 3 | BW138: Mari Schuh
A139: =A122 -> 0 | C139: =C122 -> 0 | E139: =E122 -> 0 | G139: 9781681517162 | I139: 9781681516349 | K139: Tang Fish | O139: Spot Ocean Animals | S139: Amicus | U139: 40.8 | W139: 19.95 | Y139: 24.95 | AA139: 0 | AG139: 0 | AH139: 0 | AI139: 0 | AJ139: 0 | AK139: 0 | AL139: 0 | AM139: 0 | AN139: 0 | AO139: Fall 2019 | AQ139: 2020 | AS139: 597/.42 | BC139: 24 | BE139: Spot | BG139: 0.9 | BI139: Animals & Nature | BK139: English | BM139: Reinforced Library | BO139: 16 | BQ139: C | BS139: 340L | BU139: PreK - 3 | BW139: Mari Schuh
A140: =A122 -> 0 | C140: =C122 -> 0 | E140: =E122 -> 0 | G140: 9781681517179 | I140: 9781681516356 | K140: Whales | O140: Spot Ocean Animals | S140: Amicus | U140: 40.8 | W140: 19.95 | Y140: 24.95 | AA140: 0 | AG140: 0 | AH140: 0 | AI140: 0 | AJ140: 0 | AK140: 0 | AL140: 0 | AM140: 0 | AN140: 0 | AO140: Fall 2019 | AQ140: 2020 | AS140: 599.5/24 | BC140: 24 | BE140: Spot | BG140: 1 | BI140: Animals & Nature | BK140: English | BM140: Reinforced Library | BO140: 16 | BQ140: C | BS140: 380L | BU140: PreK - 3 | BW140: Mari Schuh
K142: Complete Series of 20 | O142: Spot Sports | U142: =SUM(U143:U162) -> 816 | W142: =SUM(W143:W162) -> 399 | Y142: =SUM(Y143:Y162) -> 499
A143: =A142 -> 0 | C143: =C142 -> 0 | E143: =E142 -> 0 | G143: 9781681511757 | I143: 9781681510859 | K143: Baseball | O143: Spot Sports | S143: Amicus | U143: 40.8 | W143: 19.95 | Y143: =W143+5 -> 24.95 | AA143: =IF(AC143=FALSE,AK143+AL143+AM143,0) -> 0 | AG143: =A143 -> 0 | AH143: =C143 -> 0 | AI143: =E143 -> 0 | AJ143: =SUM(AG143:AI143) -> 0 | AK143: =U143*A143 -> 0 | AL143: =W143*C143 -> 0 | AM143: =Y143*E143 -> 0 | AN143: =SUM(AK143:AM143) -> 0 | AO143: Fall 2017 | AQ143: 2018 | AS143: 796.357 | BC143: 24 | BE143: Spot | BG143: 0.8 | BI143: Sports & Recreation | BK143: English | BM143: Reinforced Library | BO143: 16 | BQ143: D | BS143: 280L | BU143: PreK - 3 | BW143: Mari Schuh
A144: =A142 -> 0 | C144: =C142 -> 0 | E144: =E142 -> 0 | G144: 9781681511740 | I144: 9781681510842 | K144: Basketball | O144: Spot Sports | S144: Amicus | U144: 40.8 | W144: 19.95 | Y144: 24.95 | AA144: 0 | AG144: 0 | AH144: 0 | AI144: 0 | AJ144: 0 | AK144: 0 | AL144: 0 | AM144: 0 | AN144: 0 | AO144: Fall 2017 | AQ144: 2018 | AS144: 796.323 | BC144: 24 | BE144: Spot | BG144: 0.9 | BI144: Sports & Recreation | BK144: English | BM144: Reinforced Library | BO144: 16 | BQ144: D | BS144: 320L | BU144: PreK - 3 | BW144: Mari Schuh
A145: =A142 -> 0 | C145: =C142 -> 0 | E145: =E142 -> 0 | G145: 9781645490180 | I145: 9781681519333 | K145: Bowling | O145: Spot Sports | S145: Amicus | U145: 40.8 | W145: 19.95 | Y145: 24.95 | AA145: 0 | AG145: 0 | AH145: 0 | AI145: 0 | AJ145: 0 | AK145: 0 | AL145: 0 | AM145: 0 | AN145: 0 | AO145: Spring 2021 | AQ145: 2021 | AS145: 794.6 | AU145: Q | BC145: 20 | BE145: Spot | BG145: 0.9 | BI145: Sports and Recreation | BK145: English | BM145: Reinforced Library | BO145: 16 | BQ145: D | BU145: K & Up | BW145: Mari Schuh
A146: =A142 -> 0 | C146: =C142 -> 0 | E146: =E142 -> 0 | G146: 9781645490197 | I146: 9781681519340 | K146: Cheerleading | O146: Spot Sports | S146: Amicus | U146: 40.8 | W146: 19.95 | Y146: 24.95 | AA146: 0 | AG146: 0 | AH146: 0 | AI146: 0 | AJ146: 0 | AK146: 0 | AL146: 0 | AM146: 0 | AN146: 0 | AO146: Spring 2021 | AQ146: 2021 | AS146: 791.6/4 | AU146: Q | BC146: 20 | BE146: Spot | BG146: 1 | BI146: Sports and Recreation | BK146: English | BM146: Reinforced Library | BO146: 16 | BQ146: D | BU146: K & Up | BW146: Mari Schuh
A147: =A142 -> 0 | C147: =C142 -> 0 | E147: =E142 -> 0 | G147: 9781645490203 | I147: 9781681519357 | K147: Downhill Skiing | O147: Spot Sports | S147: Amicus | U147: 40.8 | W147: 19.95 | Y147: 24.95 | AA147: 0 | AG147: 0 | AH147: 0 | AI147: 0 | AJ147: 0 | AK147: 0 | AL147: 0 | AM147: 0 | AN147: 0 | AO147: Spring 2021 | AQ147: 2021 | AS147: 796.93 | AU147: Q | BC147: 20 | BE147: Spot | BG147: 1 | BI147: Sports and Recreation | BK147: English | BM147: Reinforced Library | BO147: 16 | BQ147: D | BU147: K & Up | BW147: Mari Schuh
A148: =A142 -> 0 | C148: =C142 -> 0 | E148: =E142 -> 0 | G148: 9781681517322 | I148: 9781681516509 | K148: Figure Skating | O148: Spot Sports | S148: Amicus | U148: 40.8 | W148: 19.95 | Y148: 24.95 | AA148: 0 | AG148: 0 | AH148: 0 | AI148: 0 | AJ148: 0 | AK148: 0 | AL148: 0 | AM148: 0 | AN148: 0 | AO148: Fall 2019 | AQ148: 2020 | AS148: 796.91/2 | BC148: 24 | BE148: Spot | BG148: 1 | BI148: Sports & Recreation | BK148: English | BM148: Reinforced Library | BO148: 16 | BQ148: D | BS148: 350L | BU148: PreK - 3 | BW148: Mari Schuh
A149: =A142 -> 0 | C149: =C142 -> 0 | E149: =E142 -> 0 | G149: 9781681511764 | I149: 9781681510866 | K149: Football | O149: Spot Sports | S149: Amicus | U149: 40.8 | W149: 19.95 | Y149: 24.95 | AA149: 0 | AG149: 0 | AH149: 0 | AI149: 0 | AJ149: 0 | AK149: 0 | AL149: 0 | AM149: 0 | AN149: 0 | AO149: Fall 2017 | AQ149: 2018 | AS149: 796.332 | BC149: 24 | BE149: Spot | BG149: 0.9 | BI149: Sports & Recreation | BK149: English | BM149: Reinforced Library | BO149: 16 | BQ149: D | BS149: 330L | BU149: PreK - 3 | BW149: Mari Schuh
A150: =A142 -> 0 | C150: =C142 -> 0 | E150: =E142 -> 0 | G150: 9781681517339 | I150: 9781681516516 | K150: Golf | O150: Spot Sports | S150: Amicus | U150: 40.8 | W150: 19.95 | Y150: 24.95 | AA150: 0 | AG150: 0 | AH150: 0 | AI150: 0 | AJ150: 0 | AK150: 0 | AL150: 0 | AM150: 0 | AN150: 0 | AO150: Fall 2019 | AQ150: 2020 | AS150: 796.352 | BC150: 24 | BE150: Spot | BG150: 0.9 | BI150: Sports & Recreation | BK150: English | BM150: Reinforced Library | BO150: 16 | BQ150: D | BS150: 330L | BU150: PreK - 3 | BW150: Mari Schuh
A151: =A142 -> 0 | C151: =C142 -> 0 | E151: =E142 -> 0 | G151: 9781681511771 | I151: 9781681510873 | K151: Gymnastics | O151: Spot Sports | S151: Amicus | U151: 40.8 | W151: 19.95 | Y151: 24.95 | AA151: 0 | AG151: 0 | AH151: 0 | AI151: 0 | AJ151: 0 | AK151: 0 | AL151: 0 | AM151: 0 | AN151: 0 | AO151: Fall 2017 | AQ151: 2018 | AS151: 796.44 | BC151: 24 | BE151: Spot | BG151: 0.9 | BI151: Sports & Recreation | BK151: English | BM151: Reinforced Library | BO151: 16 | BQ151: D | BS151: 280L | BU151: PreK - 3 | BW151: Mari Schuh
A152: =A142 -> 0 | C152: =C142 -> 0 | E152: =E142 -> 0 | G152: 9781681511788 | I152: 9781681510880 | K152: Hockey | O152: Spot Sports | S152: Amicus | U152: 40.8 | W152: 19.95 | Y152: 24.95 | AA152: 0 | AG152: 0 | AH152: 0 | AI152: 0 | AJ152: 0 | AK152: 0 | AL152: 0 | AM152: 0 | AN152: 0 | AO152: Fall 2017 | AQ152: 2018 | AS152: 796.962 | BC152: 24 | BE152: Spot | BG152: 0.9 | BI152: Sports & Recreation | BK152: English | BM152: Reinforced Library | BO152: 16 | BQ152: D | BS152: 280L | BU152: PreK - 3 | BW152: Mari Schuh
A153: =A142 -> 0 | C153: =C142 -> 0 | E153: =E142 -> 0 | G153: 9781645490210 | I153: 9781681519364 | K153: Lacrosse | O153: Spot Sports | S153: Amicus | U153: 40.8 | W153: 19.95 | Y153: 24.95 | AA153: 0 | AG153: 0 | AH153: 0 | AI153: 0 | AJ153: 0 | AK153: 0 | AL153: 0 | AM153: 0 | AN153: 0 | AO153: Spring 2021 | AQ153: 2021 | AS153: 796.36/2 | AU153: Q | BC153: 20 | BE153: Spot | BG153: 1 | BI153: Sports and Recreation | BK153: English | BM153: Reinforced Library | BO153: 16 | BQ153: D | BU153: K & Up | BW153: Mari Schuh
A154: =A142 -> 0 | C154: =C142 -> 0 | E154: =E142 -> 0 | G154: 9781645490227 | I154: 9781681519371 | K154: Skateboarding | O154: Spot Sports | S154: Amicus | U154: 40.8 | W154: 19.95 | Y154: 24.95 | AA154: 0 | AG154: 0 | AH154: 0 | AI154: 0 | AJ154: 0 | AK154: 0 | AL154: 0 | AM154: 0 | AN154: 0 | AO154: Spring 2021 | AQ154: 2021 | AS154: 796.22 | AU154: Q | BC154: 20 | BE154: Spot | BG154: 1 | BI154: Sports and Recreation | BK154: English | BM154: Reinforced Library | BO154: 16 | BQ154: D | BU154: K & Up | BW154: Mari Schuh
A155: =A142 -> 0 | C155: =C142 -> 0 | E155: =E142 -> 0 | G155: 9781681517346 | I155: 9781681516523 | K155: Snowboarding | O155: Spot Sports | S155: Amicus | U155: 40.8 | W155: 19.95 | Y155: 24.95 | AA155: 0 | AG155: 0 | AH155: 0 | AI155: 0 | AJ155: 0 | AK155: 0 | AL155: 0 | AM155: 0 | AN155: 0 | AO155: Fall 2019 | AQ155: 2020 | AS155: 796.939 | BC155: 24 | BE155: Spot | BG155: 1 | BI155: Sports & Recreation | BK155: English | BM155: Reinforced Library | BO155: 16 | BQ155: D | BS155: 400L | BU155: PreK - 3 | BW155: Mari Schuh
A156: =A142 -> 0 | C156: =C142 -> 0 | E156: =E142 -> 0 | G156: 9781681511795 | I156: 9781681510897 | K156: Soccer | O156: Spot Sports | S156: Amicus | U156: 40.8 | W156: 19.95 | Y156: 24.95 | AA156: 0 | AG156: 0 | AH156: 0 | AI156: 0 | AJ156: 0 | AK156: 0 | AL156: 0 | AM156: 0 | AN156: 0 | AO156: Fall 2017 | AQ156: 2018 | AS156: 796.334 | BC156: 24 | BE156: Spot | BG156: 0.9 | BI156: Sports & Recreation | BK156: English | BM156: Reinforced Library | BO156: 16 | BQ156: D | BS156: 320L | BU156: PreK - 3 | BW156: Mari Schuh
A157: =A142 -> 0 | C157: =C142 -> 0 | E157: =E142 -> 0 | G157: 9781645490234 | I157: 9781681519388 | K157: Softball | O157: Spot Sports | S157: Amicus | U157: 40.8 | W157: 19.95 | Y157: 24.95 | AA157: 0 | AG157: 0 | AH157: 0 | AI157: 0 | AJ157: 0 | AK157: 0 | AL157: 0 | AM157: 0 | AN157: 0 | AO157: Spring 2021 | AQ157: 2021 | AS157: 796.357/8 | AU157: Q | BC157: 20 | BE157: Spot | BG157: 0.9 | BI157: Sports and Recreation | BK157: English | BM157: Reinforced Library | BO157: 16 | BQ157: D | BU157: K & Up | BW157: Mari Schuh
A158: =A142 -> 0 | C158: =C142 -> 0 | E158: =E142 -> 0 | G158: 9781681517353 | I158: 9781681516530 | K158: Swimming | O158: Spot Sports | S158: Amicus | U158: 40.8 | W158: 19.95 | Y158: 24.95 | AA158: 0 | AG158: 0 | AH158: 0 | AI158: 0 | AJ158: 0 | AK158: 0 | AL158: 0 | AM158: 0 | AN158: 0 | AO158: Fall 2019 | AQ158: 2020 | AS158: 797.2/1 | BC158: 24 | BE158: Spot | BG158: 1 | BI158: Sports & Recreation | BK158: English | BM158: Reinforced Library | BO158: 16 | BQ158: D | BS158: 290L | BU158: PreK - 3 | BW158: Mari Schuh
A159: =A142 -> 0 | C159: =C142 -> 0 | E159: =E142 -> 0 | G159: 9781681517360 | I159: 9781681516547 | K159: Tae Kwon Do | O159: Spot Sports | S159: Amicus | U159: 40.8 | W159: 19.95 | Y159: 24.95 | AA159: 0 | AG159: 0 | AH159: 0 | AI159: 0 | AJ159: 0 | AK159: 0 | AL159: 0 | AM159: 0 | AN159: 0 | AO159: Fall 2019 | AQ159: 2020 | AS159: 796.815/7 | BC159: 24 | BE159: Spot | BG159: 0.9 | BI159: Sports & Recreation | BK159: English | BM159: Reinforced Library | BO159: 16 | BQ159: D | BS159: 340L | BU159: PreK - 3 | BW159: Mari Schuh
A160: =A142 -> 0 | C160: =C142 -> 0 | E160: =E142 -> 0 | G160: 9781645490241 | I160: 9781681519395 | K160: Tennis | O160: Spot Sports | S160: Amicus | U160: 40.8 | W160: 19.95 | Y160: 24.95 | AA160: 0 | AG160: 0 | AH160: 0 | AI160: 0 | AJ160: 0 | AK160: 0 | AL160: 0 | AM160: 0 | AN160: 0 | AO160: Spring 2021 | AQ160: 2021 | AS160: 796.342 | AU160: Q | BC160: 20 | BE160: Spot | BG160: 1 | BI160: Sports and Recreation | BK160: English | BM160: Reinforced Library | BO160: 16 | BQ160: D | BU160: K & Up | BW160: Mari Schuh
A161: =A142 -> 0 | C161: =C142 -> 0 | E161: =E142 -> 0 | G161: 9781645490258 | I161: 9781681519401 | K161: Track and Field | O161: Spot Sports | S161: Amicus | U161: 40.8 | W161: 19.95 | Y161: 24.95 | AA161: 0 | AG161: 0 | AH161: 0 | AI161: 0 | AJ161: 0 | AK161: 0 | AL161: 0 | AM161: 0 | AN161: 0 | AO161: Spring 2021 | AQ161: 2021 | AS161: 796.42 | AU161: Q | BC161: 20 | BE161: Spot | BG161: 0.9 | BI161: Sports and Recreation | BK161: English | BM161: Reinforced Library | BO161: 16 | BQ161: D | BU161: K & Up | BW161: Mari Schuh
A162: =A142 -> 0 | C162: =C142 -> 0 | E162: =E142 -> 0 | G162: 9781681517377 | I162: 9781681516554 | K162: Volleyball | O162: Spot Sports | S162: Amicus | U162: 40.8 | W162: 19.95 | Y162: 24.95 | AA162: 0 | AG162: 0 | AH162: 0 | AI162: 0 | AJ162: 0 | AK162: 0 | AL162: 0 | AM162: 0 | AN162: 0 | AO162: Fall 2019 | AQ162: 2020 | AS162: 796.325 | BC162: 24 | BE162: Spot | BG162: 0.9 | BI162: Sports & Recreation | BK162: English | BM162: Reinforced Library | BO162: 16 | BQ162: D | BS162: 310L | BU162: PreK - 3 | BW162: Mari Schuh
K164: Complete Series of 6 | O164: Spot Wild Cats | U164: =SUM(U165:U170) -> 244.8 | W164: =SUM(W165:W170) -> 119.7 | Y164: =SUM(Y165:Y170) -> 149.7
A165: =A164 -> 0 | C165: =C164 -> 0 | E165: =E164 -> 0 | G165: 9781645490128 | I165: 9781681519272 | K165: Bobcats | O165: Spot Wild Cats | S165: Amicus | U165: 40.8 | W165: 19.95 | Y165: =W165+5 -> 24.95 | AA165: =IF(AC165=FALSE,AK165+AL165+AM165,0) -> 0 | AG165: 0 | AH165: 0 | AI165: 0 | AJ165: 0 | AK165: 0 | AL165: 0 | AM165: 0 | AN165: 0 | AO165: Spring 2021 | AQ165: 2021 | AS165: 599.75/36 | AU165: Q | BC165: 18 | BE165: Spot | BG165: 0.9 | BI165: Life Science | BK165: English | BM165: Reinforced Library | BO165: 16 | BQ165: C | BU165: K & Up | BW165: Alissa Thielges
A166: =A164 -> 0 | C166: =C164 -> 0 | E166: =E164 -> 0 | G166: 9781645490135 | I166: 9781681519289 | K166: Cougars | O166: Spot Wild Cats | S166: Amicus | U166: 40.8 | W166: 19.95 | Y166: 24.95 | AA166: 0 | AG166: 0 | AH166: 0 | AI166: 0 | AJ166: 0 | AK166: 0 | AL166: 0 | AM166: 0 | AN166: 0 | AO166: Spring 2021 | AQ166: 2021 | AS166: 599.75/24 | AU166: Q | BC166: 18 | BE166: Spot | BG166: 0.9 | BI166: Life Science | BK166: English | BM166: Reinforced Library | BO166: 16 | BQ166: C | BU166: K & Up | BW166: Alissa Thielges
A167: =A164 -> 0 | C167: =C164 -> 0 | E167: =E164 -> 0 | G167: 9781645490142 | I167: 9781681519296 | K167: Jaguars | O167: Spot Wild Cats | S167: Amicus | U167: 40.8 | W167: 19.95 | Y167: 24.95 | AA167: 0 | AG167: 0 | AH167: 0 | AI167: 0 | AJ167: 0 | AK167: 0 | AL167: 0 | AM167: 0 | AN167: 0 | AO167: Spring 2021 | AQ167: 2021 | AS167: 599.75/5 | AU167: Q | BC167: 18 | BE167: Spot | BG167: 0.9 | BI167: Life Science | BK167: English | BM167: Reinforced Library | BO167: 16 | BQ167: C | BU167: K & Up | BW167: Alissa Thielges
A168: =A164 -> 0 | C168: =C164 -> 0 | E168: =E164 -> 0 | G168: 9781645490159 | I168: 9781681519302 | K168: Leopards | O168: Spot Wild Cats | S168: Amicus | U168: 40.8 | W168: 19.95 | Y168: 24.95 | AA168: 0 | AG168: 0 | AH168: 0 | AI168: 0 | AJ168: 0 | AK168: 0 | AL168: 0 | AM168: 0 | AN168: 0 | AO168: Spring 2021 | AQ168: 2021 | AS168: 599.75/54 | AU168: Q | BC168: 18 | BE168: Spot | BG168: 0.9 | BI168: Life Science | BK168: English | BM168: Reinforced Library | BO168: 16 | BQ168: C | BU168: K & Up | BW168: Alissa Thielges
A169: =A164 -> 0 | C169: =C164 -> 0 | E169: =E164 -> 0 | G169: 9781645490166 | I169: 9781681519319 | K169: Lynx | O169: Spot Wild Cats | S169: Amicus | U169: 40.8 | W169: 19.95 | Y169: 24.95 | AA169: 0 | AG169: 0 | AH169: 0 | AI169: 0 | AJ169: 0 | AK169: 0 | AL169: 0 | AM169: 0 | AN169: 0 | AO169: Spring 2021 | AQ169: 2021 | AS169: 599.75/3 | AU169: Q | BC169: 18 | BE169: Spot | BG169: 0.8 | BI169: Life Science | BK169: English | BM169: Reinforced Library | BO169: 16 | BQ169: C | BU169: K & Up | BW169: Alissa Thielges
A170: =A164 -> 0 | C170: =C164 -> 0 | E170: =E164 -> 0 | G170: 9781645490173 | I170: 9781681519326 | K170: Tigers | O170: Spot Wild Cats | S170: Amicus | U170: 40.8 | W170: 19.95 | Y170: 24.95 | AA170: 0 | AG170: 0 | AH170: 0 | AI170: 0 | AJ170: 0 | AK170: 0 | AL170: 0 | AM170: 0 | AN170: 0 | AO170: Spring 2021 | AQ170: 2021 | AS170: 599.756 | AU170: Q | BC170: 18 | BE170: Spot | BG170: 0.9 | BI170: Life Science | BK170: English | BM170: Reinforced Library | BO170: 16 | BQ170: C | BU170: K & Up | BW170: Alissa Thielges
K172: Complete Series of 8 | O172: The Amicus Book of…(Board Book) | U172: =SUM(U173:U180) -> 0 | W172: =SUM(W173:W180) -> 75.92 | Y172: =SUM(Y173:Y180) -> 0
C173: =C172 -> 0 | G173: Not Available | I173: 9781681525693 | K173: Amicus Book of 123, The | O173: The Amicus Book of…(Board Book) | S173: Amicus | U173: 0 | W173: 8.99 | Y173: 0 | AA173: =IF(AC173=FALSE,AK173+AL173+AM173,0) -> 0 | AG173: 0 | AH173: 0 | AI173: 0 | AJ173: 0 | AK173: 0 | AL173: 0 | AM173: 0 | AN173: 0 | AO173: Fall 2019 | AQ173: 2019 | AS173: 513.2/11 | BC173: 14 | BE173: Amicus Ink | BG173: Not Quizzable | BI173: Fiction | BK173: English | BM173: Board Book | BO173: 10 | BU173: PreK - 1 | BW173: Isobel Lundie
C174: =C172 -> 0 | G174: Not Available | I174: 9781681525686 | K174: Amicus Book of ABC, The | O174: The Amicus Book of…(Board Book) | S174: Amicus | U174: 0 | W174: 8.99 | Y174: 0 | AA174: 0 | AG174: 0 | AH174: 0 | AI174: 0 | AJ174: 0 | AK174: 0 | AL174: 0 | AM174: 0 | AN174: 0 | AO174: Fall 2019 | AQ174: 2019 | AS174: E | BC174: 14 | BE174: Amicus Ink | BG174: Not Quizzable | BI174: Fiction | BK174: English | BM174: Board Book | BO174: 26 | BU174: PreK - 1 | BW174: Isobel Lundie
C175: =C172 -> 0 | G175: Not Available | I175: 9781681527574 | K175: Amicus Book of Animal Homes, The | O175: The Amicus Book of…(Board Book) | S175: Amicus | U175: 0 | W175: 9.99 | Y175: 0 | AA175: 0 | AG175: 0 | AH175: 0 | AI175: 0 | AJ175: 0 | AK175: 0 | AL175: 0 | AM175: 0 | AN175: 0 | AO175: Fall 2020 | AQ175: 2020 | AS175: 591.56/4 | BC175: 14 | BE175: Amicus Ink | BG175: Not Quizzable | BI175: Fiction | BK175: English | BM175: Board Book | BO175: 10 | BU175: PreK - 1 | BW175: Isobel Lundie
C176: =C172 -> 0 | G176: Not Available | I176: 9781681525709 | K176: Amicus Book of Animals, The | O176: The Amicus Book of…(Board Book) | S176: Amicus | U176: 0 | W176: 8.99 | Y176: 0 | AA176: 0 | AG176: 0 | AH176: 0 | AI176: 0 | AJ176: 0 | AK176: 0 | AL176: 0 | AM176: 0 | AN176: 0 | AO176: Spring 2020 | AQ176: 2020 | AS176: 590 | BC176: 14 | BE176: Amicus Ink | BG176: Not Quizzable | BI176: Fiction | BK176: English | BM176: Board Book | BO176: 10 | BU176: PreK - 1 | BW176: Isobel Lundie
C177: =C172 -> 0 | G177: Not Available | I177: 9781681527604 | K177: Amicus Book of Bugs, The | O177: The Amicus Book of…(Board Book) | S177: Amicus | U177: 0 | W177: 9.99 | Y177: 0 | AA177: 0 | AG177: 0 | AH177: 0 | AI177: 0 | AJ177: 0 | AK177: 0 | AL177: 0 | AM177: 0 | AN177: 0 | AO177: Spring 2021 | AQ177: 2021 | AS177: 595.7 | BC177: 14 | BE177: Amicus Ink | BG177: Not Quizzable | BI177: Earth and Space Science | BK177: English | BM177: Board Book | BO177: 10 | BQ177: na | BU177: PreK & Up | BW177: Isobel Lundie
C178: =C172 -> 0 | G178: Not Available | I178: 9781681525716 | K178: Amicus Book of Colors, The | O178: The Amicus Book of…(Board Book) | S178: Amicus | U178: 0 | W178: 8.99 | Y178: 0 | AA178: 0 | AG178: 0 | AH178: 0 | AI178: 0 | AJ178: 0 | AK178: 0 | AL178: 0 | AM178: 0 | AN178: 0 | AO178: Spring 2020 | AQ178: 2020 | AS178: 535.6 | BC178: 14 | BE178: Amicus Ink | BG178: Not Quizzable | BI178: Fiction | BK178: English | BM178: Board Book | BO178: 10 | BU178: PreK - 1 | BW178: Isobel Lundie
C179: =C172 -> 0 | G179: Not Available | I179: 9781681527581 | K179: Amicus Book of Earth, The | O179: The Amicus Book of…(Board Book) | S179: Amicus | U179: 0 | W179: 9.99 | Y179: 0 | AA179: 0 | AG179: 0 | AH179: 0 | AI179: 0 | AJ179: 0 | AK179: 0 | AL179: 0 | AM179: 0 | AN179: 0 | AO179: Fall 2020 | AQ179: 2020 | BC179: 14 | BE179: Amicus Ink | BG179: Not Quizzable | BI179: Fiction | BK179: English | BM179: Board Book | BO179: 10 | BU179: PreK - 1 | BW179: Isobel Lundie
C180: =C172 -> 0 | G180: Not Available | I180: 9781681527598 | K180: Amicus Book of Nature, The | O180: The Amicus Book of…(Board Book) | S180: Amicus | U180: 0 | W180: 9.99 | Y180: 0 | AA180: 0 | AG180: 0 | AH180: 0 | AI180: 0 | AJ180: 0 | AK180: 0 | AL180: 0 | AM180: 0 | AN180: 0 | AO180: Spring 2021 | AQ180: 2021 | AS180: 508 | BC180: 14 | BE180: Amicus Ink | BG180: Not Quizzable | BI180: Earth and Space Science | BK180: English | BM180: Board Book | BO180: 10 | BQ180: na | BU180: PreK & Up | BW180: Isobel Lundie
K182: Complete Series of 3 | O182: Amicus Ink Board Books | U182: =SUM(U183:U185) -> 42.9 | W182: =SUM(W183:W185) -> 29.97 | Y182: =SUM(Y183:Y185) -> 44.97
A183: =A182 -> 0 | C183: =C182 -> 0 | E183: =E182 -> 0 | G183: 9781681525129 | I183: 9781681521947 | K183: It's Not the Baby | O183: Amicus Ink Board Books | S183: Amicus | U183: 14.3 | W183: 9.99 | Y183: =W183+5 -> 14.99 | AA183: =IF(AC183=FALSE,AK183+AL183+AM183,0) -> 0 | AG183: 0 | AH183: 0 | AI183: 0 | AJ183: 0 | AK183: 0 | AL183: 0 | AM183: 0 | AN183: 0 | AO183: Fall 2017 | AQ183: 2018 | AS183: E | BC183: 14 | BE183: Amicus Ink | BG183: Not Quizzable | BI183: Fiction | BK183: English | BM183: Board Book | BO183: 14 | BU183: 4 - 8 | BW183: J. Patrick Lewis & Leigh Lewis
A184: =A182 -> 0 | C184: =C182 -> 0 | E184: =E182 -> 0 | G184: 9781681525150 | I184: 9781681524092 | K184: It's Not the Puppy | O184: Amicus Ink Board Books | S184: Amicus | U184: 14.3 | W184: 9.99 | Y184: =W184+5 -> 14.99 | AA184: 0 | AG184: 0 | AH184: 0 | AI184: 0 | AJ184: 0 | AK184: 0 | AL184: 0 | AM184: 0 | AN184: 0 | AO184: Spring 2019 | AQ184: 2019 | AS184: E | BC184: 14 | BE184: Amicus Ink | BG184: Not Quizzable | BI184: Fiction | BK184: English | BM184: Board Book | BO184: 14 | BU184: 4 - 8 | BW184: J. Patrick Lewis & Leigh Lewis
A185: =A182 -> 0 | C185: =C182 -> 0 | E185: =E182 -> 0 | G185: 9781681525679 | I185: 9781681525037 | K185: Who is Making a Mess? | O185: Amicus Ink Board Books | S185: Amicus | U185: 14.3 | W185: 9.99 | Y185: =W185+5 -> 14.99 | AA185: 0 | AG185: 0 | AH185: 0 | AI185: 0 | AJ185: 0 | AK185: 0 | AL185: 0 | AM185: 0 | AN185: 0 | AO185: Spring 2020 | AQ185: 2020 | AS185: E | BC185: 13 | BE185: Amicus Ink | BG185: Not Quizzable | BI185: Fiction | BK185: English | BM185: Board Book | BO185: 20 | BU185: 4 - 8 | BW185: Maria D’Haene
K187: Complete Series of 6 | O187: Deportes olímpicos de verano (Summer Olympic Sports) | U187: =SUM(U188:U193) -> 294 | W187: =SUM(W188:W193) -> 143.7 | Y187: =SUM(Y188:Y193) -> 173.7
A188: =A187 -> 0 | C188: =C187 -> 0 | E188: =E187 -> 0 | G188: 9781681519258 | I188: 9781681518992 | K188: El atletismo (Track & Field) | O188: Deportes olímpicos de verano (Summer Olympic Sports) | S188: Amicus | U188: 49 | W188: 23.95 | Y188: =W188+5 -> 28.95 | AA188: =IF(AC188=FALSE,AK188+AL188+AM188,0) -> 0 | AG188: 0 | AH188: 0 | AI188: 0 | AJ188: 0 | AK188: 0 | AL188: 0 | AM188: 0 | AN188: 0 | AO188: Spring 2020 | AQ188: 2020 | AS188: 796.42 | BC188: 50 | BE188: Amicus High Interest | BG188: 3.6 | BI188: Sports & Recreation | BK188: Spanish | BM188: Reinforced Library | BO188: 32 | BU188: 1 - 4 | BW188: M. K. Osborne
A189: =A187 -> 0 | C189: =C187 -> 0 | E189: =E187 -> 0 | G189: 9781681519210 | I189: 9781681518954 | K189: El baloncesto (Basketball) | O189: Deportes olímpicos de verano (Summer Olympic Sports) | S189: Amicus | U189: 49 | W189: 23.95 | Y189: 28.95 | AA189: 0 | AG189: 0 | AH189: 0 | AI189: 0 | AJ189: 0 | AK189: 0 | AL189: 0 | AM189: 0 | AN189: 0 | AO189: Spring 2020 | AQ189: 2020 | AS189: 796.323 | BC189: 50 | BE189: Amicus High Interest | BG189: 3.7 | BI189: Sports & Recreation | BK189: Spanish | BM189: Reinforced Library | BO189: 32 | BU189: 1 - 4 | BW189: M. K. Osborne
A190: =A187 -> 0 | C190: =C187 -> 0 | E190: =E187 -> 0 | G190: 9781681519265 | I190: 9781681519005 | K190: El vóleibol (Volleyball) | O190: Deportes olímpicos de verano (Summer Olympic Sports) | S190: Amicus | U190: 49 | W190: 23.95 | Y190: 28.95 | AA190: 0 | AG190: 0 | AH190: 0 | AI190: 0 | AJ190: 0 | AK190: 0 | AL190: 0 | AM190: 0 | AN190: 0 | AO190: Spring 2020 | AQ190: 2020 | AS190: 796.325 | BC190: 50 | BE190: Amicus High Interest | BG190: 3.7 | BI190: Sports & Recreation | BK190: Spanish | BM190: Reinforced Library | BO190: 32 | BU190: 1 - 4 | BW190: M. K. Osborne
A191: =A187 -> 0 | C191: =C187 -> 0 | E191: =E187 -> 0 | G191: 9781681519234 | I191: 9781681518978 | K191: La gimnasia (Gymnastics) | O191: Deportes olímpicos de verano (Summer Olympic Sports) | S191: Amicus | U191: 49 | W191: 23.95 | Y191: 28.95 | AA191: 0 | AG191: 0 | AH191: 0 | AI191: 0 | AJ191: 0 | AK191: 0 | AL191: 0 | AM191: 0 | AN191: 0 | AO191: Spring 2020 | AQ191: 2020 | AS191: 796.44 | BC191: 50 | BE191: Amicus High Interest | BG191: 4.1 | BI191: Sports & Recreation | BK191: Spanish | BM191: Reinforced Library | BO191: 32 | BU191: 1 - 4 | BW191: M. K. Osborne
A192: =A187 -> 0 | C192: =C187 -> 0 | E192: =E187 -> 0 | G192: 9781681519241 | I192: 9781681518985 | K192: La natación y los saltos ornamentales (Swimmming & Diving) | O192: Deportes olímpicos de verano (Summer Olympic Sports) | S192: Amicus | U192: 49 | W192: 23.95 | Y192: 28.95 | AA192: 0 | AG192: 0 | AH192: 0 | AI192: 0 | AJ192: 0 | AK192: 0 | AL192: 0 | AM192: 0 | AN192: 0 | AO192: Spring 2020 | AQ192: 2020 | AS192: 797.2 | BC192: 50 | BE192: Amicus High Interest | BG192: 3.5 | BI192: Sports & Recreation | BK192: Spanish | BM192: Reinforced Library | BO192: 32 | BU192: 1 - 4 | BW192: M. K. Osborne
A193: =A187 -> 0 | C193: =C187 -> 0 | E193: =E187 -> 0 | G193: 9781681519227 | I193: 9781681518961 | K193: Los deportes de combate (Combat Sports) | O193: Deportes olímpicos de verano (Summer Olympic Sports) | S193: Amicus | U193: 49 | W193: 23.95 | Y193: 28.95 | AA193: 0 | AG193: 0 | AH193: 0 | AI193: 0 | AJ193: 0 | AK193: 0 | AL193: 0 | AM193: 0 | AN193: 0 | AO193: Spring 2020 | AQ193: 2020 | AS193: 796.8 | BC193: 50 | BE193: Amicus High Interest | BG193: 3.8 | BI193: Sports & Recreation | BK193: Spanish | BM193: Reinforced Library | BO193: 32 | BU193: 1 - 4 | BW193: M. K. Osborne
K195: Complete Series of 14 | O195: Favorite Cat Breeds | U195: =SUM(U196:U209) -> 269.1 | W195: =SUM(W196:W209) -> 307.3 | Y195: =SUM(Y196:Y209) -> 161.7
C196: =C195 -> 0 | G196: Not Available | I196: 9781607539667 | K196: Abyssinian Cats | O196: Favorite Cat Breeds | S196: Amicus | U196: 0 | W196: 21.95 | Y196: 0 | AA196: =IF(AC196=FALSE,AK196+AL196+AM196,0) -> 0 | AG196: 0 | AH196: 0 | AI196: 0 | AJ196: 0 | AK196: 0 | AL196: 0 | AM196: 0 | AN196: 0 | AO196: Fall 2016 | AQ196: 2017 | AS196: 636.8/26 | BC196: 30 | BE196: Amicus High Interest | BG196: 2 | BI196: Animals & Nature | BK196: English | BM196: Reinforced Library | BO196: 24 | BQ196: I | BS196: 470L | BU196: 1 - 4 | BW196: Mari Schuh
C197: =C195 -> 0 | G197: Not Available | I197: 9781607539674 | K197: American Shorthair Cats | O197: Favorite Cat Breeds | S197: Amicus | U197: 0 | W197: 21.95 | Y197: 0 | AA197: 0 | AG197: 0 | AH197: 0 | AI197: 0 | AJ197: 0 | AK197: 0 | AL197: 0 | AM197: 0 | AN197: 0 | AO197: Fall 2016 | AQ197: 2017 | AS197: 636.8/22 | BC197: 30 | BE197: Amicus High Interest | BG197: 2.1 | BI197: Animals & Nature | BK197: English | BM197: Reinforced Library | BO197: 24 | BQ197: I | BS197: 470L | BU197: 1 - 4 | BW197: Mari Schuh
C198: =C195 -> 0 | G198: Not Available | I198: 9781607539681 | K198: Birman Cats | O198: Favorite Cat Breeds | S198: Amicus | U198: 0 | W198: 21.95 | Y198: 0 | AA198: 0 | AG198: 0 | AH198: 0 | AI198: 0 | AJ198: 0 | AK198: 0 | AL198: 0 | AM198: 0 | AN198: 0 | AO198: Fall 2016 | AQ198: 2017 | AS198: 636.8/24 | BC198: 30 | BE198: Amicus High Interest | BG198: 2.1 | BI198: Animals & Nature | BK198: English | BM198: Reinforced Library | BO198: 24 | BQ198: I | BS198: 390L | BU198: 1 - 4 | BW198: Mari Schuh
C199: =C195 -> 0 | G199: 9781681518558 | I199: 9781681518152 | K199: British Shorthair Cats | O199: Favorite Cat Breeds | S199: Amicus | U199: 44.85 | W199: 21.95 | Y199: =W199+5 -> 26.95 | AA199: 0 | AG199: 0 | AH199: 0 | AI199: 0 | AJ199: 0 | AK199: 0 | AL199: 0 | AM199: 0 | AN199: 0 | AO199: Spring 2020 | AQ199: 2020 | AS199: 636.8/22 | AU199: Q | BC199: 30 | BE199: Amicus High Interest | BG199: 2.1 | BI199: Animals & Nature | BK199: English | BM199: Reinforced Library | BO199: 24 | BQ199: I | BU199: 1 - 4 | BW199: Mary Ellen Klukow
C200: =C195 -> 0 | G200: 9781681518565 | I200: 9781681518169 | K200: Devon Rex Cats | O200: Favorite Cat Breeds | S200: Amicus | U200: 44.85 | W200: 21.95 | Y200: =W200+5 -> 26.95 | AA200: 0 | AG200: 0 | AH200: 0 | AI200: 0 | AJ200: 0 | AK200: 0 | AL200: 0 | AM200: 0 | AN200: 0 | AO200: Spring 2020 | AQ200: 2020 | AS200: 636.8/22 | AU200: Q | BC200: 30 | BE200: Amicus High Interest | BG200: 2.1 | BI200: Animals & Nature | BK200: English | BM200: Reinforced Library | BO200: 24 | BQ200: I | BU200: 1 - 4 | BW200: Mary Ellen Klukow
C201: =C195 -> 0 | G201: 9781681518572 | I201: 9781681518176 | K201: Exotic Cats | O201: Favorite Cat Breeds | S201: Amicus | U201: 44.85 | W201: 21.95 | Y201: =W201+5 -> 26.95 | AA201: 0 | AG201: 0 | AH201: 0 | AI201: 0 | AJ201: 0 | AK201: 0 | AL201: 0 | AM201: 0 | AN201: 0 | AO201: Spring 2020 | AQ201: 2020 | AS201: 636.8/2 | AU201: Q | BC201: 30 | BE201: Amicus High Interest | BG201: 2.3 | BI201: Animals & Nature | BK201: English | BM201: Reinforced Library | BO201: 24 | BQ201: I | BU201: 1 - 4 | BW201: Mary Ellen Klukow
C202: =C195 -> 0 | G202: Not Available | I202: 9781607539698 | K202: Maine Coon Cats | O202: Favorite Cat Breeds | S202: Amicus | U202: 0 | W202: 21.95 | Y202: 0 | AA202: 0 | AG202: 0 | AH202: 0 | AI202: 0 | AJ202: 0 | AK202: 0 | AL202: 0 | AM202: 0 | AN202: 0 | AO202: Fall 2016 | AQ202: 2017 | AS202: 636.8/3 | BC202: 30 | BE202: Amicus High Interest | BG202: 2 | BI202: Animals & Nature | BK202: English | BM202: Reinforced Library | BO202: 24 | BQ202: I | BS202: 470L | BU202: 1 - 4 | BW202: Mari Schuh
C203: =C195 -> 0 | G203: 9781681518589 | I203: 9781681518183 | K203: Oriental Cats | O203: Favorite Cat Breeds | S203: Amicus | U203: 44.85 | W203: 21.95 | Y203: =W203+5 -> 26.95 | AA203: 0 | AG203: 0 | AH203: 0 | AI203: 0 | AJ203: 0 | AK203: 0 | AL203: 0 | AM203: 0 | AN203: 0 | AO203: Spring 2020 | AQ203: 2020 | AS203: 636.8 | AU203: Q | BC203: 30 | BE203: Amicus High Interest | BG203: 2.5 | BI203: Animals & Nature | BK203: English | BM203: Reinforced Library | BO203: 24 | BQ203: I | BU203: 1 - 4 | BW203: Mary Ellen Klukow
C204: =C195 -> 0 | G204: Not Available | I204: 9781607539704 | K204: Persian Cats | O204: Favorite Cat Breeds | S204: Amicus | U204: 0 | W204: 21.95 | Y204: 0 | AA204: 0 | AG204: 0 | AH204: 0 | AI204: 0 | AJ204: 0 | AK204: 0 | AL204: 0 | AM204: 0 | AN204: 0 | AO204: Fall 2016 | AQ204: 2017 | AS204: 636.8/32 | BC204: 30 | BE204: Amicus High Interest | BG204: 2.1 | BI204: Animals & Nature | BK204: English | BM204: Reinforced Library | BO204: 24 | BQ204: I | BS204: 500L | BU204: 1 - 4 | BW204: Mari Schuh
C205: =C195 -> 0 | G205: Not Available | I205: 9781607539711 | K205: Ragdoll Cats | O205: Favorite Cat Breeds | S205: Amicus | U205: 0 | W205: 21.95 | Y205: 0 | AA205: 0 | AG205: 0 | AH205: 0 | AI205: 0 | AJ205: 0 | AK205: 0 | AL205: 0 | AM205: 0 | AN205: 0 | AO205: Fall 2016 | AQ205: 2017 | AS205: 636.8/3 | BC205: 30 | BE205: Amicus High Interest | BG205: 2 | BI205: Animals & Nature | BK205: English | BM205: Reinforced Library | BO205: 24 | BQ205: I | BS205: 430L | BU205: 1 - 4 | BW205: Mari Schuh
C206: =C195 -> 0 | G206: 9781681518596 | I206: 9781681518190 | K206: Scottish Folds | O206: Favorite Cat Breeds | S206: Amicus | U206: 44.85 | W206: 21.95 | Y206: =W206+5 -> 26.95 | AA206: 0 | AG206: =A206 -> 0 | AH206: =C206 -> 0 | AI206: =E206 -> 0 | AJ206: =SUM(AG206:AI206) -> 0 | AK206: =U206*A206 -> 0 | AL206: =W206*C206 -> 0 | AM206: =Y206*E206 -> 0 | AN206: =SUM(AK206:AM206) -> 0 | AO206: Spring 2020 | AQ206: 2020 | AS206: 636.8 | AU206: Q | BC206: 30 | BE206: Amicus High Interest | BG206: 2.3 | BI206: Animals & Nature | BK206: English | BM206: Reinforced Library | BO206: 24 | BQ206: I | BU206: 1 - 4 | BW206: Mary Ellen Klukow
C207: =C195 -> 0 | G207: Not Available | I207: 9781607539728 | K207: Siamese Cats | O207: Favorite Cat Breeds | S207: Amicus | U207: 0 | W207: 21.95 | Y207: 0 | AA207: 0 | AG207: 0 | AH207: 0 | AI207: 0 | AJ207: 0 | AK207: 0 | AL207: 0 | AM207: 0 | AN207: 0 | AO207: Fall 2016 | AQ207: 2017 | AS207: 636.8/25 | BC207: 30 | BE207: Amicus High Interest | BG207: 2 | BI207: Animals & Nature | BK207: English | BM207: Reinforced Library | BO207: 24 | BQ207: I | BS207: 480L | BU207: 1 - 4 | BW207: Mari Schuh
C208: =C195 -> 0 | G208: 9781681518602 | I208: 9781681518206 | K208: Siberian Cats | O208: Favorite Cat Breeds | S208: Amicus | U208: 44.85 | W208: 21.95 | Y208: =W208+5 -> 26.95 | AA208: 0 | AG208: 0 | AH208: 0 | AI208: 0 | AJ208: 0 | AK208: 0 | AL208: 0 | AM208: 0 | AN208: 0 | AO208: Spring 2020 | AQ208: 2020 | AS208: 636.8 | AU208: Q | BC208: 30 | BE208: Amicus High Interest | BG208: 2.3 | BI208: Animals & Nature | BK208: English | BM208: Reinforced Library | BO208: 24 | BQ208: I | BU208: 1 - 4 | BW208: Mary Ellen Klukow
C209: =C195 -> 0 | G209: Not Available | I209: 9781607539735 | K209: Sphynx Cats | O209: Favorite Cat Breeds | S209: Amicus | U209: 0 | W209: 21.95 | Y209: 0 | AA209: 0 | AG209: 0 | AH209: 0 | AI209: 0 | AJ209: 0 | AK209: 0 | AL209: 0 | AM209: 0 | AN209: 0 | AO209: Fall 2016 | AQ209: 2017 | AS209: 636.8 | BC209: 30 | BE209: Amicus High Interest | BG209: 2.1 | BI209: Animals & Nature | BK209: English | BM209: Reinforced Library | BO209: 24 | BQ209: I | BS209: 410L | BU209: 1 - 4 | BW209: Mari Schuh
K211: Complete Series of 4 | O211: Paralympic Sports | U211: =SUM(U212:U215) -> 196 | W211: =SUM(W212:W215) -> 95.8 | Y211: =SUM(Y212:Y215) -> 115.8
A212: =A211 -> 0 | C212: =C211 -> 0 | E212: =E211 -> 0 | G212: 9781681518695 | I212: 9781681518299 | K212: Individual Sports at the Paralympics | O212: Paralympic Sports | S212: Amicus | U212: 49 | W212: 23.95 | Y212: =W212+5 -> 28.95 | AA212: =IF(AC212=FALSE,AK212+AL212+AM212,0) -> 0 | AG212: 0 | AH212: 0 | AI212: 0 | AJ212: 0 | AK212: 0 | AL212: 0 | AM212: 0 | AN212: 0 | AO212: Spring 2020 | AQ212: 2020 | AS212: 796.04/56 | AU212: Q | BC212: 29 | BE212: Amicus High Interest | BG212: 3.5 | BI212: Sports & Recreation | BK212: English | BM212: Reinforced Library | BO212: 32 | BQ212: L | BU212: 2 – 5 | BW212: Matt Bowers
A213: =A211 -> 0 | C213: =C211 -> 0 | E213: =E211 -> 0 | G213: 9781681518701 | I213: 9781681518305 | K213: Team Sports at the Paralympics | O213: Paralympic Sports | S213: Amicus | U213: 49 | W213: 23.95 | Y213: =W213+5 -> 28.95 | AA213: 0 | AG213: 0 | AH213: 0 | AI213: 0 | AJ213: 0 | AK213: 0 | AL213: 0 | AM213: 0 | AN213: 0 | AO213: Spring 2020 | AQ213: 2020 | AS213: 796.04/56 | AU213: Q | BC213: 29 | BE213: Amicus High Interest | BG213: 3.4 | BI213: Sports & Recreation | BK213: English | BM213: Reinforced Library | BO213: 32 | BQ213: L | BU213: 2 – 5 | BW213: Matt Bowers
A214: =A211 -> 0 | C214: =C211 -> 0 | E214: =E211 -> 0 | G214: 9781681518688 | I214: 9781681518282 | K214: Water Sports at the Paralympics | O214: Paralympic Sports | S214: Amicus | U214: 49 | W214: 23.95 | Y214: =W214+5 -> 28.95 | AA214: 0 | AG214: 0 | AH214: 0 | AI214: 0 | AJ214: 0 | AK214: 0 | AL214: 0 | AM214: 0 | AN214: 0 | AO214: Spring 2020 | AQ214: 2020 | AS214: 796.04/56 | AU214: Q | BC214: 29 | BE214: Amicus High Interest | BG214: 3.5 | BI214: Sports & Recreation | BK214: English | BM214: Reinforced Library | BO214: 32 | BQ214: L | BU214: 2 – 5 | BW214: Matt Bowers
A215: =A211 -> 0 | C215: =C211 -> 0 | E215: =E211 -> 0 | G215: 9781681518671 | I215: 9781681518275 | K215: Wheelchair Sports at the Paralympics | O215: Paralympic Sports | S215: Amicus | U215: 49 | W215: 23.95 | Y215: =W215+5 -> 28.95 | AA215: 0 | AG215: 0 | AH215: 0 | AI215: 0 | AJ215: 0 | AK215: 0 | AL215: 0 | AM215: 0 | AN215: 0 | AO215: Spring 2020 | AQ215: 2020 | AS215: 796.04/56 | AU215: Q | BC215: 29 | BE215: Amicus High Interest | BG215: 3.5 | BI215: Sports & Recreation | BK215: English | BM215: Reinforced Library | BO215: 32 | BQ215: L | BU215: 2 – 5 | BW215: Matt Bowers
K217: Complete Series of 10 | O217: Sequence Amazing Structures | U217: =SUM(U218:U227) -> 490 | W217: =SUM(W218:W227) -> 239.5 | Y217: =SUM(Y218:Y227) -> 289.5
A218: =A217 -> 0 | C218: =C217 -> 0 | E218: =E217 -> 0 | G218: 9781681515106 | I218: 9781681514284 | K218: Building a Bridge | O218: Sequence Amazing Structures | S218: Amicus | U218: 49 | W218: 23.95 | Y218: =W218+5 -> 28.95 | AA218: =IF(AC218=FALSE,AK218+AL218+AM218,0) -> 0 | AG218: 0 | AH218: 0 | AI218: 0 | AJ218: 0 | AK218: 0 | AL218: 0 | AM218: 0 | AN218: 0 | AO218: Fall 2018 | AQ218: 2019 | AS218: 624.2 | BC218: 45 | BE218: Sequence | BG218: 3.7 | BI218: Science & Technology | BK218: English | BM218: Reinforced Library | BO218: 32 | BQ218: M | BS218: 480L | BU218: 2 – 5 | BW218: Angie Smibert
A219: =A217 -> 0 | C219: =C217 -> 0 | E219: =E217 -> 0 | G219: 9781681515113 | I219: 9781681514291 | K219: Building a Dam | O219: Sequence Amazing Structures | S219: Amicus | U219: 49 | W219: 23.95 | Y219: 28.95 | AA219: 0 | AG219: 0 | AH219: 0 | AI219: 0 | AJ219: 0 | AK219: 0 | AL219: 0 | AM219: 0 | AN219: 0 | AO219: Fall 2018 | AQ219: 2019 | AS219: 627/.8 | BC219: 45 | BE219: Sequence | BG219: 3.8 | BI219: Science & Technology | BK219: English | BM219: Reinforced Library | BO219: 32 | BQ219: M | BS219: 540L | BU219: 2 – 5 | BW219: Angie Smibert
A220: =A217 -> 0 | C220: =C217 -> 0 | E220: =E217 -> 0 | G220: 9781681518749 | I220: 9781681518343 | K220: Building a Highway | O220: Sequence Amazing Structures | S220: Amicus | U220: 49 | W220: 23.95 | Y220: 28.95 | AA220: 0 | AG220: 0 | AH220: 0 | AI220: 0 | AJ220: 0 | AK220: 0 | AL220: 0 | AM220: 0 | AN220: 0 | AO220: Spring 2020 | AQ220: 2020 | AS220: 625.7 | AU220: Q | BC220: 45 | BE220: Sequence | BG220: 3.5 | BI220: Science & Technology | BK220: English | BM220: Reinforced Library | BO220: 32 | BQ220: M | BU220: 2 – 5 | BW220: Karen Latchana Kenney
A221: =A217 -> 0 | C221: =C217 -> 0 | E221: =E217 -> 0 | G221: 9781681515120 | I221: 9781681514307 | K221: Building a Roller Coaster | O221: Sequence Amazing Structures | S221: Amicus | U221: 49 | W221: 23.95 | Y221: 28.95 | AA221: 0 | AG221: 0 | AH221: 0 | AI221: 0 | AJ221: 0 | AK221: 0 | AL221: 0 | AM221: 0 | AN221: 0 | AO221: Fall 2018 | AQ221: 2019 | AS221: 796.5 | BC221: 45 | BE221: Sequence | BG221: 3.6 | BI221: Science & Technology | BK221: English | BM221: Reinforced Library | BO221: 32 | BQ221: M | BS221: 530L | BU221: 2 – 5 | BW221: Karen Latchana Kenney
A222: =A217 -> 0 | C222: =C217 -> 0 | E222: =E217 -> 0 | G222: 9781681515137 | I222: 9781681514314 | K222: Building a Skyscraper | O222: Sequence Amazing Structures | S222: Amicus | U222: 49 | W222: 23.95 | Y222: 28.95 | AA222: 0 | AG222: 0 | AH222: 0 | AI222: 0 | AJ222: 0 | AK222: 0 | AL222: 0 | AM222: 0 | AN222: 0 | AO222: Fall 2018 | AQ222: 2019 | AS222: 690/.52 | BC222: 45 | BE222: Sequence | BG222: 3.6 | BI222: Science & Technology | BK222: English | BM222: Reinforced Library | BO222: 32 | BQ222: M | BS222: 540L | BU222: 2 – 5 | BW222: Karen Latchana Kenney
... 1687 more rows

Sheet Summary
M1: BILL TO INFORMATION: | U1: ORDER INFORMATION:
K2: Organization: | S2: Sale Rep:
K3: Contact Name: | S3: PO Number:
K4: Address: | S4: Need by Date:
K5: City, State, Zip: | S5: Backorders | AA5: Processing
K6: eMail Address: | S6: Accepted?: | AA6: Ordered?:
K7: Phone Number:
A8:  | C8: Remit to: J. Appleseed Media
C9: PO Box 3006 | Mankato, MN 56001 | M9: SHIP TO INFORMATION: | Q9: Click if same as Bill To | U9: ADDITIONAL INSTRUCTIONS:
C10: (P) 833.776.0483 | (F) 507.388.7330 | K10: Organization:
A11:  | C11: orders@jappleseedmedia.com | K11: Contact Name:
A12:  | C12: www.jappleseedmedia.com | K12: Address:
A13:  | C13: Visa, Mastercard, American Express or check accepted | K13: City, State, Zip:
C14: (3% service fee for all credit cards) | K14: eMail Address:
K15: Phone Number:
I18: =IF(HIDDEN!G19="Yes","Your order qualifies for a promotional item! Choose from the following eligible options:","Add more books to qualify for a promotion!") -> Add more books to qualify for a promotion!
I19: =IF(HIDDEN!G3="Yes",HIDDEN!H3,"") ->  | U19: Total eBooks | W19: Total Print Books | Y19: Total Bundle Sets | AC19: Subtotal | AE19: ='Title List'!AL6 -> 0
I20: =IF(HIDDEN!G5="Yes",HIDDEN!H5,"") ->  | AC20: Processing | AE20: ='Processing Spec Form'!JD46 -> 0
I21: =IF(HIDDEN!G7="Yes",HIDDEN!H7,"") ->  | U21: ='Title List'!U4 -> 0 | W21: ='Title List'!W4 -> 0 | Y21: ='Title List'!Y4 -> 0 | AC21: Shipping (10%) | AE21: =IF(AE19>=100,0,Summary!AE19*10%) -> 0
I22: =IF(HIDDEN!G9="Yes",HIDDEN!H9,"") ->  | U22: ='Title List'!U5 -> 0 | W22: ='Title List'!AL3 -> 0 | Y22: ='Title List'!Y5 -> 0 | AC22: Total Order | AE22: =SUM(AE19:AE21) -> 0
I23: =IF(HIDDEN!G11="Yes",HIDDEN!H11,"") ->  | U23: *FREE shipping on order over $100.00
I24: =IF(HIDDEN!G13="Yes",HIDDEN!H13,"") ->  | U24: *Promotions cannot be combined
I25: =IF(HIDDEN!G15="Yes",HIDDEN!H15,"") -> 
A26: Multi User eBook Qty | C26: Print Qty | E26: Bundle Qty | G26: eBook ISBN | I26: Print ISBN | K26: Title | O26: Series | S26: Publisher | U26: Multi User eBook Price | W26: School / Library Print Price | Y26: Bundle Price | AA26: Total | AC26: Mark X for FREE | AE26: Custom Field | AG26: HIDDEN EB Qty | AH26: HIDDEN HC Qty | AI26: HIDDEN Bundle Qty | AJ26: HIDDEN TOTAL QTY | AK26: HIDDEN EB TOTAL | AL26: HIDDEN HC TOTAL | AM26: HIDDEN Bundle Qty | AN26: HIDDEN TOTAL

Sheet Processing Spec Form
A7: **Fill out your school/library information and then choose the processing package you wish to order.**
C9: School / Library Information
Q11: School or Library Name: | JB11: MARC Records Only | JD11: =IF(E21="x",0,0) -> 0
Q13: Contact Name: | JB13: Shelf Ready (Attached) | JD13: =IF(Y21="x",'Title List'!AA4*0,0) -> 0
Q15: Phone Number: | JB15: Shelf Ready (Unattached) | JD15: =IF(AS21="x",'Title List'!AA6*0,0) -> 0
Q17: E-Mail Address: | JB17: Bar Codes (HC) | JD17: =IF(E29="x",'Title List'!W4*0.75,0) -> 0
C19: Package Options: | JB19: Additional Bar Codes (HC) | JD19: =IF(E31="x",'Title List'!W4*0.75,0) -> 0
G21: MARC Records Only (FREE) | AA21: Shelf Ready Processing (Attached) | AU21: Shelf Ready Processing (Unattached) | JB21: Spine Labels | JD21: =IF(E33="x",'Title List'!W4*0.5,0) -> 0
AA22: (MARC Records, 1 Barcode, 1 Spine label, 1 Reading label of your choice - FREE) | AU22: (MARC Records, 1 Barcode, 1 Spine label, 1 Reading label of your choice - FREE)
JB23: Property Label | JD23: =IF(E35="x",'Title List'!W4*0.5,0) -> 0
AA25: Barcode for Print books only | AU25: Barcode for Print & eBooks | JB25: AR Spine Label | JD25: =IF(Y29="x",'Title List'!W4*0.2,0) -> 0
C27: Additional Options | E27: Processing Options: | JB27: AR Information Label | JD27: =IF(Y31="x",'Title List'!W4*0.25,0) -> 0
G29: Barcode ($.75) | AA29: AR Spine Label ($.25) | AU29: 3M Tattle Tape ($1.00) | JB29: Lexile Label | JD29: =IF(E37="x",'Title List'!W4*0.2,0) -> 0
G31: Additional Barcode ($.75) | AA31: AR Information Label ($.25) | AU31: Checkpoint 8.2 (Plain or Date Due) ($1.00) | JB31: Book Pocket | JD31: =IF(Y33="x",'Title List'!W4*0.5,0) -> 0
G33: Spine Label ($.50) | AA33: Book Pocket ($.50) | AU33: Checkpoint 9.5 (Plain or Date Due) ($1.00) | JB33: Date Due Card | JD33: =IF(Y35="x",'Title List'!W4*0.1,0) -> 0
G35: Property Label ($.50) | AA35: Date Due Card ($.10) | AU35: Checkpoint RFID | JB35: Date Due Slip | JD35: =IF(Y37="x",'Title List'!W4*0.1,0) -> 0
G37: Lexile Label ($.20) | AA37: Date Due Slip ($.10) | AU37: (Contact customer service to get a quote) | JB37: 3M Tattle Tape | JD37: =IF(AS29="x",'Title List'!W4*1,0) -> 0
C39: Electronic Data Specifications | E39: Processing Options: | JB39: Theft Checkpoint 8.2 | JD39: =IF(AS31="x",'Title List'!W4*1,0) -> 0
E41: Software Type: | Y41: Software Version: | AS41: Software Format: | JB41: Theft Checkpoint 9.5 | JD41: =IF(AS33="x",'Title List'!W4*1,0) -> 0
G42: Destiny | AU42: USMARC 852 Holdings
G44: Circulation Plus | Y44: Delivery Type: | AU44: US MARC 949 Holdings | JB44: Theft RFID | JD44: =IF(AS35="x",'Title List'!W4*0,0) -> 0
G46: Spectrum | AA46: CD Rom | AU46: (Requires Custom Holdings to be provided) | JB46: Total Processing: | JD46: =SUM(JD11:JD45) -> 0
G48: Follett | AA48: Web Download (provide email address) | AS48: Computer Type:
G50: Other: | AU50: Windows / PC
AU52: Macintosh
C54: Barcode Specifications | E54: Processing Options:
E56: Name to appear on Barcode: (max 30 characters including spaces)
E59: Barcode Range:
AG60: -
E62: Symbology:
G63: Code 3 of 9 / No Check | AA63: Codabar / Mod 10 check digit | AU63: Interleaved 2 of 5 / Follett Classic
G65: Code 3 of 9 / Mod 10 check digit | AA65: Codabar / no check digit | AU65: Interleaved 2 of 5 / no check digit
G67: Code 3 of 9 / Mod 43 check digit | AA67: Other:
C69: Cataloging Profile Specifications | E69: Processing Options:
I71: * = Standard (Check if standard options are wanted. If no options checked, the standard options will be applied)
E73: Subject Headings:
G74: Sears* | AA74: Library of Congress | AU74: Library of Congress - Children's
E76: Dewey Number:
G77: Do no truncate the abridged dewey* | AA77: Truncate abridged dewey number by | AS77: digits
E79: Workmark:
G80: Initial letter capitalized* | AA80: All uppercase letters
E82: Individual Biography Call Number:
E83: Prefix: | Y83: Classification: | AS83: Workmark:
G84: Follow non-fiction prefixes specified* | AA84: B * | AU84: 3 biographee letters*
G86: None | AA86: 92 | AU86: Biographee's last name
AA88: Other: | AU88: Other:
E90: Easy Fiction (K-3) Call Number:
E91: Prefix: | Y91: Classification: | AS91: Workmark:
G92: None * | AA92: E * | AU92: 3 biographee letters*
G94: J above class | AA94: F | AU94: Biographee's last name
G96: Other: | AA96: Other: | AU96: Other:
E98: Fiction (grades 4-8) Call Number:
E99: Prefix: | Y99: Classification: | AS99: Workmark:
G100: None * | AA100: F * | AU100: 3 biographee letters*
G102: J above class | AA102: Fic | AU102: Biographee's last name
G104: Other: | AA104: Other: | AU104: Other:
E106: Fiction (grades 9-12) Call Number:
E107: Prefix: | Y107: Classification: | AS107: Workmark:
G108: None * | AA108: F * | AU108: 3 biographee letters*
G110: J above class | AA110: Fic | AU110: Biographee's last name
G112: Other: | AA112: Other: | AU112: Other:
E114: Easy Non-Fiction (K-3) Call Number:
E115: Prefix: | Y115: Classification: | AS115: Workmark:
G116: None * | AA116: Dewey Number * | AU116: 3 biographee letters*
G118: J above class | AA118: E | AU118: Biographee's last name
G120: Other: | AA120: Other: | AU120: Other:
E122: Non-Fiction (4-8) Call Number:
E123: Prefix: | Y123: Classification: | AS123: Workmark:
G124: None * | AA124: Dewey Number * | AU124: 3 biographee letters*
G126: J above class | AA126: E | AU126: Biographee's last name
G128: Other: | AA128: Other: | AU128: Other:
E130: Non-Fiction (9-12) Call Number:
E131: Prefix: | Y131: Classification: | AS131: Workmark:
G132: None * | AA132: Dewey Number * | AU132: 3 biographee letters*
G134: J above class | AA134: E | AU134: Biographee's last name
G136: Other: | AA136: Other: | AU136: Other:
E138: Graphic Fiction Call Number:
E139: Prefix: | Y139: Classification: | AS139: Workmark:
G140: None * | AA140: 741.5 * | AU140: 3 biographee letters*
G142: Graphic | AA142: Use fiction classification | AU142: Biographee's last name
G144: Other: | AA144: Other: | AU144: Other:
E146: Graphic Non-Fiction Call Number:
E147: Prefix: | Y147: Classification: | AS147: Workmark:
G148: None * | AA148: Dewey Number * | AU148: 3 biographee letters*
G150: J above class | AA150: E | AU150: Biographee's last name
G152: Other: | AA152: Other: | AU152: Other:
E154: Collective Biography Call Number:
E155: Prefix: | Y155: Classification: | AS155: Workmark:
G156: Follow nonfiction prefixes * | AA156: 920 * | AU156: 3 biographee letters*
G158: Other: | AA158: BC | AU158: Biographee's last name
AA160: Other: | AU160: Other:
E162: Story Collection Books Call Number:
E163: Prefix: | Y163: Classification: | AS163: Workmark:
G164: Follow fiction prefixes * | AA164: F * | AU164: 3 biographee letters*
G166: Other: | AA166: Fic | AU166: Biographee's last name
AA168: SC | AU168: Other:
AA170: Other:
E172: Foreign Language Call Number:
E173: Prefix: | Y173: Classification: | AS173: Workmark:
G174: None * | AA174: Dewey by Lang * | AU174: 3 biographee letters*
G176: Sp | AA176: Dewey by Subject | AU176: Biographee's last name
G178: Other: | AU178: Other:
E180: Billingual:
G181: Use English call number options * | AA181: Use foreign language call number options
E183: Reference Call Number:
E184: Prefix: | Y184: Classification: | AS184: Workmark:
G185: None | AA185: Dewey * | AU185: 3 biographee letters*
G187: R above dewey number * | AU187: Biographee's last name
G189: Other: | AU189: Other:
C191: Attaching Instructions | E191: Processing Options:
C192: *Mylar Jackets are attached to all books with dust jackets (Standard)
E194: Barcode Label(s):
G195: Barcode 1:
I196: Position A - Q:
I198: Other:
G200: Barcode 2:
I201: Position A - Q:
I203: Other:
E205: Spine Label:
I206: 1.5" from bottom of spine*
I208: Other:
E210: AR Spine Label:
I211: Above Spine Label*
I213: Other:
E215: AR Information Label: | AI215: Vertical | AS215: Vertical | BC215: Horizontal
I216: Other: | AI216: (Reading Up) | AS216: (Reading Down)
E219: Book Pocket:
I220: Inside front cover centered *
I222: Other:
E224: Other Option(s):
I225: Other:
I227: Other:
I229: Other:
C232: Additional / Special Instructions | E232: Processing Options:

Sheet eBook Access Form
AA2: eBOOK ACCESS INFORMATION
AE3: * = REQUIRED FIELDS
A5: If no information is provided, J. Appleseed will create a Username / Password for you.
O7: *School / Library Information:
M9: School / Library Name:
M11: School District:
M13: Contact Name: | AO13: Phone Number:
M15: E-Mail Address:
O17: *Administrative Access:
O18: (Administrative access provides valuable usage statistics and resources - Please provide 2 choices for username in the event the first is not available)
M20: Username (1): | AI20: (2):
M22: Password:
O24: *General Access:
O25: (This allows general reader access to your eBooks. General access credentials must be different from Administrative Access - Please provide 2 choices for username in the event the first is not available))
M27: Username (1): | AI27: (2):
M29: Password:
O31: *MARC Records Access Requirements:
O32: (No username / password required to access)
M34: Instant Access: | Q34: Yes | W34: No
O37: IP Address Authentication (optional):
O38: If we add your IP address information to your account, users who access your library onsite from the building will automatically be logged in. PLEASE NOTE: IP authentication is not an access option for organizations who use a private IP address or use a shared public IP address. Please consult with your network administrator if you are unsure.
O39: **IP authentication does not work remotely (e.g. from home)**
O41: Provide the IP addressor range of network:
Q43: Yes | W43: No
O45: Does this IP address or range service multiple buildings or sites?
Q47: Yes | W47: No
O49: Referring URL Address (optional):
O50: If your organization has a secure password protected site, we can put the URL of your site on our list of approved URLs, and anytime a user clicks on your library link from your site regardless of whether they are at school or at home they will be automatically logged in. Referring URLs must be unique to your institution, not shared by a district.
O52: Provide the URL of the web page where the access link(s) will be posted:
Q54: Yes | W54: No
O56: Does this IP address or range service multiple buildings or sites?
Q58: Yes | W58: No

Sheet HIDDEN (hidden)
A1: PROMOTIONS | B1: PAYMENTS | C1: FORMATS
A3: Buy 2, Get 1 FREE | B3: VISA | C3: Reinforced Library | F3: BOGO | G3: =IF('Title List'!AL7>=500,"Yes","No") -> No | H3: =IF(G3="Yes","Eligible for Buy 2, Get 1 FREE Books, place an X in Column AE next to your FREE choices","") -> 
A4: Free eBooks Premium Subscription | B4: Mastercard | C4: Hardcover with Jacket
A5: Free eBooks Fall 2021 Subscription | B5: American Express | C5: Board Book | F5: Premium '21 Subscription | G5: =IF('Title List'!AL3>=5000,"Yes","No") -> No | H5: =IF(G5="Yes","Eligible for Premium '21 eBook Subscription","") -> 
A6: Free eBooks Package 2021 Subscription | B6: Check | C6: Digital Book
A7: Savings Bundle | F7: Frontlist F21 Subscription | G7: =IF('Title List'!AL3>=2000,"Yes","No") -> No | H7: =IF(G7="Yes","Eligible for Complete Fall '21 eBook Subscription","") -> 
A8: *Savings Bundle Bonus
A9: *Free Custom Processing | F9: Animals F21 Subscription | G9: =IF('Title List'!AL3>=1000,"Yes","No") -> No | H9: =IF(G9="Yes","Eligible for Animals '21 eBook Subscription","") -> 
A10: Free Shipping
F11: STEM F21 Subscription | G11: =IF('Title List'!AL3>=1000,"Yes","No") -> No | H11: =IF(G11="Yes","Eligible for STEM Fall '21 eBook Subscription","") -> 
A13: YES/NO OPTION | B13: SUBJECTS | C13: PROCESSING OPTIONS | F13: Gift Card | G13: =IF('Title List'!AL4>=1000,"Yes","No") -> No | H13: =IF(G13="Yes","Eligible for Amazon Gift Card","") -> 
A15: Yes | B15: Animals & Nature | C15: MARC Records | F15: Custom Processing | G15: =IF('Title List'!AL8>=500,"Yes","No") -> No | H15: =IF(G15="Yes","Eligible for Free Custom Processing","") -> 
A16: No | B16: Arts, Crafts, & Activities | C16: Bar Codes
B17: Biographies | C17: Bar Codes (Additional Set)
B18: Careers | C18: Spine Labels
B19: Culture & Religion | C19: Spine Labels (Additional Set) | G19: =IF(COUNTIF(G3:G15,"*Yes*"),"Yes","No") -> No
B20: Current Issues | C20: QR Labels (for eBooks)
B21: Fiction | C21: Book Pockets
B22: Health | C22: Shelf List Cards
B23: High Interest | C23: Date Due Cards
B24: History | C24: Date Due Slips
B25: Language Arts | C25: Property Label
B26: Legends, Myths, & Paranormal | C26: AR Spine Label
B27: Math and Finance | C27: AR Info Label
B28: Science & Technology | C28: AR Indicator Label
B29: Social Studies | C29: Lexile Label
B30: Sports & Recreation | C30: Catalog Card Kits
C31: Theft 3M Tattle Tape
C32: Theft Checkpoint
C33: Theft RFID
